{"text_format":"1","workbook":"xlsx","n_sheets":3,"sheets":["PG Account Finder","Dropdown list items","Database for mini tool"],"not_rendered":{"charts":0,"images":2,"macros":1,"external_links":0,"defined_names":4,"comments":0,"pivot_tables":0},"unopened":[],"bounds":{"document_bytes":16777216,"sheet_cells":100000,"rows_first":2000,"rows_last":500,"rows_between":2000,"halvings":0,"cell_chars":16384,"cell_head_chars":4096},"cells_cut":0,"cells_raw":0,"read":"whole","date_system":"1900"}

{"sheet":"PG Account Finder","index":0,"n_rows":13,"n_cols":5,"rows_kept":13,"cut":false,"hidden":false,"merged":[[1,0,1,1]]}
[]
["PG Account Finder"]
["1. What is the Type of Supply?","GOODS",{"$f":"_xlfn.XOR(TRIM(A3)=\"\",TRIM(B3)=\"\")","v":false}]
[{"$f":"IF(TRIM(B3)<>\"\",\"2. What is the P&G company name that ordered the goods/services?\",\"\")","v":"2. What is the P&G company name that ordered the goods/services?"},"",{"$f":"_xlfn.XOR(TRIM(A4)=\"\",TRIM(B4)=\"\")","v":true}]
[{"$f":"IF(TRIM(B4)<>\"\",\"3. What is the goods destination/ services supplied to P&G in which country?\",\"\")","v":""},null,false]
[{"$f":"IF(TRIM(B5)<>\"\",IF(TRIM(B4)=\"Procter & Gamble Manufacturing GmbH\",\"4. What is the city?\",IF(TRIM(B4)=\"Procter & Gamble UK\",\"4. What is the PO box?\",\"\")),\"\")","v":""},null,false]
[null,{"$f":"TRIM(B3)&\"|\"&TRIM(B4)&\"|\"&TRIM(B5)&\"|\"&TRIM(B6)","v":"GOODS|||"},{"$f":"OR(C3,C4,C5,C6)","v":true}]
[]
["AAA account number:",{"$f":"IF(ISNA(VLOOKUP($B$7,'Database for mini tool'!$A:$K,6,0)),IF(NOT($C$7),\"No AAA account available\",\"\"),VLOOKUP($B$7,'Database for mini tool'!$A:$K,6,0))","v":""}]
["Billing info:",{"$f":"IF(ISNA(VLOOKUP($B$7,'Database for mini tool'!$A:$K,8,0)),\"\",VLOOKUP($B$7,'Database for mini tool'!$A:$K,8,0))","v":""}]
[]
[null,{"$f":"IF(ISNA(VLOOKUP($B$7,'Database for mini tool'!$A:$K,9,0)),\"\",VLOOKUP($B$7,'Database for mini tool'!$A:$K,9,0))","v":""}]
["VAT ID number:",{"$f":"IF(ISNA(VLOOKUP($B$7,'Database for mini tool'!$A:$K,11,0)),\"\",VLOOKUP($B$7,'Database for mini tool'!$A:$K,11,0))","v":""},null,null,"Clear form"]

{"sheet":"Dropdown list items","index":1,"n_rows":78,"n_cols":9,"rows_kept":78,"cut":false,"hidden":true,"merged":[]}
["Type","Legal Entity","LE Match","LE Match w Order Ids","LE matching items","Country","City","PO box","VAT number"]
["GOODS","Agile Pursuits Fran. Inc.",{"$f":"--ISNUMBER(IFERROR(SEARCH('PG Account Finder'!$B$4,B2,1),\"\"))","v":1},{"$f":"IF(C2=1,COUNTIF($C$2:C2,1),\"\")","v":1},{"$f":"IFERROR(INDEX($B$2:$B$76,MATCH(ROWS($D$2:D2),$D$2:$D$77,0)),\"\")","v":"Agile Pursuits Fran. Inc."},"Belgium","Procter & Gamble UK","Procter & Gamble Manufacturing GmbH","Procter & Gamble International Operations SA Singapore Branch"]
["SERVICES","Agile Pursuits, Inc",{"$f":"--ISNUMBER(IFERROR(SEARCH('PG Account Finder'!$B$4,B3,1),\"\"))","v":1},{"$f":"IF(C3=1,COUNTIF($C$2:C3,1),\"\")","v":2},{"$f":"IFERROR(INDEX($B$2:$B$76,MATCH(ROWS($D$2:D3),$D$2:$D$77,0)),\"\")","v":"Agile Pursuits, Inc"},"Canada","Crailsheim","PO BOX 135","Malaysia – 0001972326400"]
[null,"Benefit Plan Trust",{"$f":"--ISNUMBER(IFERROR(SEARCH('PG Account Finder'!$B$4,B4,1),\"\"))","v":1},{"$f":"IF(C4=1,COUNTIF($C$2:C4,1),\"\")","v":3},{"$f":"IFERROR(INDEX($B$2:$B$76,MATCH(ROWS($D$2:D4),$D$2:$D$77,0)),\"\")","v":"Benefit Plan Trust"},"Czech Republic","Euskirchen","PO BOX 77","Singapore – M90005335T"]
[null,"Braun-Gillette Immobilien GmbH & Co. KG",{"$f":"--ISNUMBER(IFERROR(SEARCH('PG Account Finder'!$B$4,B5,1),\"\"))","v":1},{"$f":"IF(C5=1,COUNTIF($C$2:C5,1),\"\")","v":4},{"$f":"IFERROR(INDEX($B$2:$B$76,MATCH(ROWS($D$2:D5),$D$2:$D$77,0)),\"\")","v":"Braun-Gillette Immobilien GmbH & Co. KG"},"France","Gross Gerau"]
[null,"Detergent Products AG",{"$f":"--ISNUMBER(IFERROR(SEARCH('PG Account Finder'!$B$4,B6,1),\"\"))","v":1},{"$f":"IF(C6=1,COUNTIF($C$2:C6,1),\"\")","v":5},{"$f":"IFERROR(INDEX($B$2:$B$76,MATCH(ROWS($D$2:D6),$D$2:$D$77,0)),\"\")","v":"Detergent Products AG"},"Germany","Huenfeld"]
[null,"Gillette UK Limited",{"$f":"--ISNUMBER(IFERROR(SEARCH('PG Account Finder'!$B$4,B7,1),\"\"))","v":1},{"$f":"IF(C7=1,COUNTIF($C$2:C7,1),\"\")","v":6},{"$f":"IFERROR(INDEX($B$2:$B$76,MATCH(ROWS($D$2:D7),$D$2:$D$77,0)),\"\")","v":"Gillette UK Limited"},"Hong Kong","Kronberg"]
[null,"GIORGIO BEVERLY HILLS, INC.",{"$f":"--ISNUMBER(IFERROR(SEARCH('PG Account Finder'!$B$4,B8,1),\"\"))","v":1},{"$f":"IF(C8=1,COUNTIF($C$2:C8,1),\"\")","v":7},{"$f":"IFERROR(INDEX($B$2:$B$76,MATCH(ROWS($D$2:D8),$D$2:$D$77,0)),\"\")","v":"GIORGIO BEVERLY HILLS, INC."},"Hungary","Marktheidenfeld"]
[null,"GRAHAM WEBB INTERNATIONAL, INC.",{"$f":"--ISNUMBER(IFERROR(SEARCH('PG Account Finder'!$B$4,B9,1),\"\"))","v":1},{"$f":"IF(C9=1,COUNTIF($C$2:C9,1),\"\")","v":8},{"$f":"IFERROR(INDEX($B$2:$B$76,MATCH(ROWS($D$2:D9),$D$2:$D$77,0)),\"\")","v":"GRAHAM WEBB INTERNATIONAL, INC."},"Malaysia","Marktheidenfeld-Altfeld"]
[null,"Hyginett Kft",{"$f":"--ISNUMBER(IFERROR(SEARCH('PG Account Finder'!$B$4,B10,1),\"\"))","v":1},{"$f":"IF(C10=1,COUNTIF($C$2:C10,1),\"\")","v":9},{"$f":"IFERROR(INDEX($B$2:$B$76,MATCH(ROWS($D$2:D10),$D$2:$D$77,0)),\"\")","v":"Hyginett Kft"},"Netherlands","Schwalbach am Taunus"]
[null,"Laboratorios Vicks SL",{"$f":"--ISNUMBER(IFERROR(SEARCH('PG Account Finder'!$B$4,B11,1),\"\"))","v":1},{"$f":"IF(C11=1,COUNTIF($C$2:C11,1),\"\")","v":10},{"$f":"IFERROR(INDEX($B$2:$B$76,MATCH(ROWS($D$2:D11),$D$2:$D$77,0)),\"\")","v":"Laboratorios Vicks SL"},"Singapore","Steinberg"]
[null,"Olay  LLC",{"$f":"--ISNUMBER(IFERROR(SEARCH('PG Account Finder'!$B$4,B12,1),\"\"))","v":1},{"$f":"IF(C12=1,COUNTIF($C$2:C12,1),\"\")","v":11},{"$f":"IFERROR(INDEX($B$2:$B$76,MATCH(ROWS($D$2:D12),$D$2:$D$77,0)),\"\")","v":"Olay  LLC"},"Spain","Wallduern"]
[null,"Olay LLC",{"$f":"--ISNUMBER(IFERROR(SEARCH('PG Account Finder'!$B$4,B13,1),\"\"))","v":1},{"$f":"IF(C13=1,COUNTIF($C$2:C13,1),\"\")","v":12},{"$f":"IFERROR(INDEX($B$2:$B$76,MATCH(ROWS($D$2:D13),$D$2:$D$77,0)),\"\")","v":"Olay LLC"},"Switzerland","Weiterstadt"]
[null,"ORAL-B LABORATORIES G.P.",{"$f":"--ISNUMBER(IFERROR(SEARCH('PG Account Finder'!$B$4,B14,1),\"\"))","v":1},{"$f":"IF(C14=1,COUNTIF($C$2:C14,1),\"\")","v":13},{"$f":"IFERROR(INDEX($B$2:$B$76,MATCH(ROWS($D$2:D14),$D$2:$D$77,0)),\"\")","v":"ORAL-B LABORATORIES G.P."},"United Kingdom","Worms"]
[null,"P&G HONG KONG LTD",{"$f":"--ISNUMBER(IFERROR(SEARCH('PG Account Finder'!$B$4,B15,1),\"\"))","v":1},{"$f":"IF(C15=1,COUNTIF($C$2:C15,1),\"\")","v":14},{"$f":"IFERROR(INDEX($B$2:$B$76,MATCH(ROWS($D$2:D15),$D$2:$D$77,0)),\"\")","v":"P&G HONG KONG LTD"},"United States"]
[null,"P&G Manufacturing Co.",{"$f":"--ISNUMBER(IFERROR(SEARCH('PG Account Finder'!$B$4,B16,1),\"\"))","v":1},{"$f":"IF(C16=1,COUNTIF($C$2:C16,1),\"\")","v":15},{"$f":"IFERROR(INDEX($B$2:$B$76,MATCH(ROWS($D$2:D16),$D$2:$D$77,0)),\"\")","v":"P&G Manufacturing Co."}]
[null,"P&G Northeast Asia Pte Ltd",{"$f":"--ISNUMBER(IFERROR(SEARCH('PG Account Finder'!$B$4,B17,1),\"\"))","v":1},{"$f":"IF(C17=1,COUNTIF($C$2:C17,1),\"\")","v":16},{"$f":"IFERROR(INDEX($B$2:$B$76,MATCH(ROWS($D$2:D17),$D$2:$D$77,0)),\"\")","v":"P&G Northeast Asia Pte Ltd"}]
[null,"P&G Paper Products Co",{"$f":"--ISNUMBER(IFERROR(SEARCH('PG Account Finder'!$B$4,B18,1),\"\"))","v":1},{"$f":"IF(C18=1,COUNTIF($C$2:C18,1),\"\")","v":17},{"$f":"IFERROR(INDEX($B$2:$B$76,MATCH(ROWS($D$2:D18),$D$2:$D$77,0)),\"\")","v":"P&G Paper Products Co"}]
[null,"P&G Prestige Service GmbH",{"$f":"--ISNUMBER(IFERROR(SEARCH('PG Account Finder'!$B$4,B19,1),\"\"))","v":1},{"$f":"IF(C19=1,COUNTIF($C$2:C19,1),\"\")","v":18},{"$f":"IFERROR(INDEX($B$2:$B$76,MATCH(ROWS($D$2:D19),$D$2:$D$77,0)),\"\")","v":"P&G Prestige Service GmbH"}]
[null,"PGT Healthcare LLP",{"$f":"--ISNUMBER(IFERROR(SEARCH('PG Account Finder'!$B$4,B20,1),\"\"))","v":1},{"$f":"IF(C20=1,COUNTIF($C$2:C20,1),\"\")","v":19},{"$f":"IFERROR(INDEX($B$2:$B$76,MATCH(ROWS($D$2:D20),$D$2:$D$77,0)),\"\")","v":"PGT Healthcare LLP"}]
[null,"Procter & Gamble – Rakona s.r.o.",{"$f":"--ISNUMBER(IFERROR(SEARCH('PG Account Finder'!$B$4,B21,1),\"\"))","v":1},{"$f":"IF(C21=1,COUNTIF($C$2:C21,1),\"\")","v":20},{"$f":"IFERROR(INDEX($B$2:$B$76,MATCH(ROWS($D$2:D21),$D$2:$D$77,0)),\"\")","v":"Procter & Gamble – Rakona s.r.o."}]
[null,"Procter & Gamble (Malaysia) Sdn. Bhd. ",{"$f":"--ISNUMBER(IFERROR(SEARCH('PG Account Finder'!$B$4,B22,1),\"\"))","v":1},{"$f":"IF(C22=1,COUNTIF($C$2:C22,1),\"\")","v":21},{"$f":"IFERROR(INDEX($B$2:$B$76,MATCH(ROWS($D$2:D22),$D$2:$D$77,0)),\"\")","v":"Procter & Gamble (Malaysia) Sdn. Bhd. "}]
[null,"Procter & Gamble Acquisition GmbH ",{"$f":"--ISNUMBER(IFERROR(SEARCH('PG Account Finder'!$B$4,B23,1),\"\"))","v":1},{"$f":"IF(C23=1,COUNTIF($C$2:C23,1),\"\")","v":22},{"$f":"IFERROR(INDEX($B$2:$B$76,MATCH(ROWS($D$2:D23),$D$2:$D$77,0)),\"\")","v":"Procter & Gamble Acquisition GmbH "}]
[null,"Procter & Gamble Blois SAS",{"$f":"--ISNUMBER(IFERROR(SEARCH('PG Account Finder'!$B$4,B24,1),\"\"))","v":1},{"$f":"IF(C24=1,COUNTIF($C$2:C24,1),\"\")","v":23},{"$f":"IFERROR(INDEX($B$2:$B$76,MATCH(ROWS($D$2:D24),$D$2:$D$77,0)),\"\")","v":"Procter & Gamble Blois SAS"}]
[null,"Procter & Gamble Company",{"$f":"--ISNUMBER(IFERROR(SEARCH('PG Account Finder'!$B$4,B25,1),\"\"))","v":1},{"$f":"IF(C25=1,COUNTIF($C$2:C25,1),\"\")","v":24},{"$f":"IFERROR(INDEX($B$2:$B$76,MATCH(ROWS($D$2:D25),$D$2:$D$77,0)),\"\")","v":"Procter & Gamble Company"}]
[null,"Procter & Gamble Distribution Company Europe BVBA",{"$f":"--ISNUMBER(IFERROR(SEARCH('PG Account Finder'!$B$4,B26,1),\"\"))","v":1},{"$f":"IF(C26=1,COUNTIF($C$2:C26,1),\"\")","v":25},{"$f":"IFERROR(INDEX($B$2:$B$76,MATCH(ROWS($D$2:D26),$D$2:$D$77,0)),\"\")","v":"Procter & Gamble Distribution Company Europe BVBA"}]
[null,"Procter & Gamble España SA",{"$f":"--ISNUMBER(IFERROR(SEARCH('PG Account Finder'!$B$4,B27,1),\"\"))","v":1},{"$f":"IF(C27=1,COUNTIF($C$2:C27,1),\"\")","v":26},{"$f":"IFERROR(INDEX($B$2:$B$76,MATCH(ROWS($D$2:D27),$D$2:$D$77,0)),\"\")","v":"Procter & Gamble España SA"}]
[null,"Procter & Gamble Europe SA",{"$f":"--ISNUMBER(IFERROR(SEARCH('PG Account Finder'!$B$4,B28,1),\"\"))","v":1},{"$f":"IF(C28=1,COUNTIF($C$2:C28,1),\"\")","v":27},{"$f":"IFERROR(INDEX($B$2:$B$76,MATCH(ROWS($D$2:D28),$D$2:$D$77,0)),\"\")","v":"Procter & Gamble Europe SA"}]
[null,"Procter & Gamble Europe SA Singapore Branch",{"$f":"--ISNUMBER(IFERROR(SEARCH('PG Account Finder'!$B$4,B29,1),\"\"))","v":1},{"$f":"IF(C29=1,COUNTIF($C$2:C29,1),\"\")","v":28},{"$f":"IFERROR(INDEX($B$2:$B$76,MATCH(ROWS($D$2:D29),$D$2:$D$77,0)),\"\")","v":"Procter & Gamble Europe SA Singapore Branch"}]
[null,"PROCTER & GAMBLE FAR EAST, INC.",{"$f":"--ISNUMBER(IFERROR(SEARCH('PG Account Finder'!$B$4,B30,1),\"\"))","v":1},{"$f":"IF(C30=1,COUNTIF($C$2:C30,1),\"\")","v":29},{"$f":"IFERROR(INDEX($B$2:$B$76,MATCH(ROWS($D$2:D30),$D$2:$D$77,0)),\"\")","v":"PROCTER & GAMBLE FAR EAST, INC."}]
[null,"Procter & Gamble France SAS",{"$f":"--ISNUMBER(IFERROR(SEARCH('PG Account Finder'!$B$4,B31,1),\"\"))","v":1},{"$f":"IF(C31=1,COUNTIF($C$2:C31,1),\"\")","v":30},{"$f":"IFERROR(INDEX($B$2:$B$76,MATCH(ROWS($D$2:D31),$D$2:$D$77,0)),\"\")","v":"Procter & Gamble France SAS"}]
[null,"Procter & Gamble Germany GmbH",{"$f":"--ISNUMBER(IFERROR(SEARCH('PG Account Finder'!$B$4,B32,1),\"\"))","v":1},{"$f":"IF(C32=1,COUNTIF($C$2:C32,1),\"\")","v":31},{"$f":"IFERROR(INDEX($B$2:$B$76,MATCH(ROWS($D$2:D32),$D$2:$D$77,0)),\"\")","v":"Procter & Gamble Germany GmbH"}]
[null,"Procter & Gamble Germany GmbH & Co Operations OHG",{"$f":"--ISNUMBER(IFERROR(SEARCH('PG Account Finder'!$B$4,B33,1),\"\"))","v":1},{"$f":"IF(C33=1,COUNTIF($C$2:C33,1),\"\")","v":32},{"$f":"IFERROR(INDEX($B$2:$B$76,MATCH(ROWS($D$2:D33),$D$2:$D$77,0)),\"\")","v":"Procter & Gamble Germany GmbH & Co Operations OHG"}]
[null,"Procter & Gamble GmbH",{"$f":"--ISNUMBER(IFERROR(SEARCH('PG Account Finder'!$B$4,B34,1),\"\"))","v":1},{"$f":"IF(C34=1,COUNTIF($C$2:C34,1),\"\")","v":33},{"$f":"IFERROR(INDEX($B$2:$B$76,MATCH(ROWS($D$2:D34),$D$2:$D$77,0)),\"\")","v":"Procter & Gamble GmbH"}]
[null,"Procter & Gamble Grundstucks und Vermogensverwaltungs GmbH & Co. KG",{"$f":"--ISNUMBER(IFERROR(SEARCH('PG Account Finder'!$B$4,B35,1),\"\"))","v":1},{"$f":"IF(C35=1,COUNTIF($C$2:C35,1),\"\")","v":34},{"$f":"IFERROR(INDEX($B$2:$B$76,MATCH(ROWS($D$2:D35),$D$2:$D$77,0)),\"\")","v":"Procter & Gamble Grundstucks und Vermogensverwaltungs GmbH & Co. KG"}]
[null,"PROCTER & GAMBLE HAIR CARE LLC",{"$f":"--ISNUMBER(IFERROR(SEARCH('PG Account Finder'!$B$4,B36,1),\"\"))","v":1},{"$f":"IF(C36=1,COUNTIF($C$2:C36,1),\"\")","v":35},{"$f":"IFERROR(INDEX($B$2:$B$76,MATCH(ROWS($D$2:D36),$D$2:$D$77,0)),\"\")","v":"PROCTER & GAMBLE HAIR CARE LLC"}]
[null,"Procter & Gamble Holding France SAS",{"$f":"--ISNUMBER(IFERROR(SEARCH('PG Account Finder'!$B$4,B37,1),\"\"))","v":1},{"$f":"IF(C37=1,COUNTIF($C$2:C37,1),\"\")","v":36},{"$f":"IFERROR(INDEX($B$2:$B$76,MATCH(ROWS($D$2:D37),$D$2:$D$77,0)),\"\")","v":"Procter & Gamble Holding France SAS"}]
[null,"Procter & Gamble Holding GmbH",{"$f":"--ISNUMBER(IFERROR(SEARCH('PG Account Finder'!$B$4,B38,1),\"\"))","v":1},{"$f":"IF(C38=1,COUNTIF($C$2:C38,1),\"\")","v":37},{"$f":"IFERROR(INDEX($B$2:$B$76,MATCH(ROWS($D$2:D38),$D$2:$D$77,0)),\"\")","v":"Procter & Gamble Holding GmbH"}]
[null,"Procter & Gamble Inc",{"$f":"--ISNUMBER(IFERROR(SEARCH('PG Account Finder'!$B$4,B39,1),\"\"))","v":1},{"$f":"IF(C39=1,COUNTIF($C$2:C39,1),\"\")","v":38},{"$f":"IFERROR(INDEX($B$2:$B$76,MATCH(ROWS($D$2:D39),$D$2:$D$77,0)),\"\")","v":"Procter & Gamble Inc"}]
[null,"Procter & Gamble Inc.  - Wella Division",{"$f":"--ISNUMBER(IFERROR(SEARCH('PG Account Finder'!$B$4,B40,1),\"\"))","v":1},{"$f":"IF(C40=1,COUNTIF($C$2:C40,1),\"\")","v":39},{"$f":"IFERROR(INDEX($B$2:$B$76,MATCH(ROWS($D$2:D40),$D$2:$D$77,0)),\"\")","v":"Procter & Gamble Inc.  - Wella Division"}]
[null,"Procter & Gamble International Operations SA",{"$f":"--ISNUMBER(IFERROR(SEARCH('PG Account Finder'!$B$4,B41,1),\"\"))","v":1},{"$f":"IF(C41=1,COUNTIF($C$2:C41,1),\"\")","v":40},{"$f":"IFERROR(INDEX($B$2:$B$76,MATCH(ROWS($D$2:D41),$D$2:$D$77,0)),\"\")","v":"Procter & Gamble International Operations SA"}]
[null,"Procter & Gamble International Operations SA Singapore Branch",{"$f":"--ISNUMBER(IFERROR(SEARCH('PG Account Finder'!$B$4,B42,1),\"\"))","v":1},{"$f":"IF(C42=1,COUNTIF($C$2:C42,1),\"\")","v":41},{"$f":"IFERROR(INDEX($B$2:$B$76,MATCH(ROWS($D$2:D42),$D$2:$D$77,0)),\"\")","v":"Procter & Gamble International Operations SA Singapore Branch"}]
[null,"Procter & Gamble Investment GmbH",{"$f":"--ISNUMBER(IFERROR(SEARCH('PG Account Finder'!$B$4,B43,1),\"\"))","v":1},{"$f":"IF(C43=1,COUNTIF($C$2:C43,1),\"\")","v":42},{"$f":"IFERROR(INDEX($B$2:$B$76,MATCH(ROWS($D$2:D43),$D$2:$D$77,0)),\"\")","v":"Procter & Gamble Investment GmbH"}]
[null,"Procter & Gamble Magyarország Nagykereskedelmi Kkt.",{"$f":"--ISNUMBER(IFERROR(SEARCH('PG Account Finder'!$B$4,B44,1),\"\"))","v":1},{"$f":"IF(C44=1,COUNTIF($C$2:C44,1),\"\")","v":43},{"$f":"IFERROR(INDEX($B$2:$B$76,MATCH(ROWS($D$2:D44),$D$2:$D$77,0)),\"\")","v":"Procter & Gamble Magyarország Nagykereskedelmi Kkt."}]
[null,"Procter & Gamble Manufacturing Belgium NV",{"$f":"--ISNUMBER(IFERROR(SEARCH('PG Account Finder'!$B$4,B45,1),\"\"))","v":1},{"$f":"IF(C45=1,COUNTIF($C$2:C45,1),\"\")","v":44},{"$f":"IFERROR(INDEX($B$2:$B$76,MATCH(ROWS($D$2:D45),$D$2:$D$77,0)),\"\")","v":"Procter & Gamble Manufacturing Belgium NV"}]
[null,"Procter & Gamble Manufacturing Berlin GmbH",{"$f":"--ISNUMBER(IFERROR(SEARCH('PG Account Finder'!$B$4,B46,1),\"\"))","v":1},{"$f":"IF(C46=1,COUNTIF($C$2:C46,1),\"\")","v":45},{"$f":"IFERROR(INDEX($B$2:$B$76,MATCH(ROWS($D$2:D46),$D$2:$D$77,0)),\"\")","v":"Procter & Gamble Manufacturing Berlin GmbH"}]
[null,"Procter & Gamble Manufacturing GmbH",{"$f":"--ISNUMBER(IFERROR(SEARCH('PG Account Finder'!$B$4,B47,1),\"\"))","v":1},{"$f":"IF(C47=1,COUNTIF($C$2:C47,1),\"\")","v":46},{"$f":"IFERROR(INDEX($B$2:$B$76,MATCH(ROWS($D$2:D47),$D$2:$D$77,0)),\"\")","v":"Procter & Gamble Manufacturing GmbH"}]
[null,"Procter & Gamble Mataró SL",{"$f":"--ISNUMBER(IFERROR(SEARCH('PG Account Finder'!$B$4,B48,1),\"\"))","v":1},{"$f":"IF(C48=1,COUNTIF($C$2:C48,1),\"\")","v":47},{"$f":"IFERROR(INDEX($B$2:$B$76,MATCH(ROWS($D$2:D48),$D$2:$D$77,0)),\"\")","v":"Procter & Gamble Mataró SL"}]
[null,"Procter & Gamble Nederland BV",{"$f":"--ISNUMBER(IFERROR(SEARCH('PG Account Finder'!$B$4,B49,1),\"\"))","v":1},{"$f":"IF(C49=1,COUNTIF($C$2:C49,1),\"\")","v":48},{"$f":"IFERROR(INDEX($B$2:$B$76,MATCH(ROWS($D$2:D49),$D$2:$D$77,0)),\"\")","v":"Procter & Gamble Nederland BV"}]
[null,"Procter & Gamble Netherlands Services BV",{"$f":"--ISNUMBER(IFERROR(SEARCH('PG Account Finder'!$B$4,B50,1),\"\"))","v":1},{"$f":"IF(C50=1,COUNTIF($C$2:C50,1),\"\")","v":49},{"$f":"IFERROR(INDEX($B$2:$B$76,MATCH(ROWS($D$2:D50),$D$2:$D$77,0)),\"\")","v":"Procter & Gamble Netherlands Services BV"}]
[null,"Procter & Gamble Pharmaceuticals France SAS",{"$f":"--ISNUMBER(IFERROR(SEARCH('PG Account Finder'!$B$4,B51,1),\"\"))","v":1},{"$f":"IF(C51=1,COUNTIF($C$2:C51,1),\"\")","v":50},{"$f":"IFERROR(INDEX($B$2:$B$76,MATCH(ROWS($D$2:D51),$D$2:$D$77,0)),\"\")","v":"Procter & Gamble Pharmaceuticals France SAS"}]
[null,"Procter & Gamble Product Supply UK Limited",{"$f":"--ISNUMBER(IFERROR(SEARCH('PG Account Finder'!$B$4,B52,1),\"\"))","v":1},{"$f":"IF(C52=1,COUNTIF($C$2:C52,1),\"\")","v":51},{"$f":"IFERROR(INDEX($B$2:$B$76,MATCH(ROWS($D$2:D52),$D$2:$D$77,0)),\"\")","v":"Procter & Gamble Product Supply UK Limited"}]
[null,"PROCTER & GAMBLE PRODUCTIONS, INC.",{"$f":"--ISNUMBER(IFERROR(SEARCH('PG Account Finder'!$B$4,B53,1),\"\"))","v":1},{"$f":"IF(C53=1,COUNTIF($C$2:C53,1),\"\")","v":52},{"$f":"IFERROR(INDEX($B$2:$B$76,MATCH(ROWS($D$2:D53),$D$2:$D$77,0)),\"\")","v":"PROCTER & GAMBLE PRODUCTIONS, INC."}]
[null,"PROCTER & GAMBLE RHD, INC.",{"$f":"--ISNUMBER(IFERROR(SEARCH('PG Account Finder'!$B$4,B54,1),\"\"))","v":1},{"$f":"IF(C54=1,COUNTIF($C$2:C54,1),\"\")","v":53},{"$f":"IFERROR(INDEX($B$2:$B$76,MATCH(ROWS($D$2:D54),$D$2:$D$77,0)),\"\")","v":"PROCTER & GAMBLE RHD, INC."}]
[null,"Procter & Gamble Service GmbH",{"$f":"--ISNUMBER(IFERROR(SEARCH('PG Account Finder'!$B$4,B55,1),\"\"))","v":1},{"$f":"IF(C55=1,COUNTIF($C$2:C55,1),\"\")","v":54},{"$f":"IFERROR(INDEX($B$2:$B$76,MATCH(ROWS($D$2:D55),$D$2:$D$77,0)),\"\")","v":"Procter & Gamble Service GmbH"}]
[null,"Procter & Gamble Services (Switzerland) SA",{"$f":"--ISNUMBER(IFERROR(SEARCH('PG Account Finder'!$B$4,B56,1),\"\"))","v":1},{"$f":"IF(C56=1,COUNTIF($C$2:C56,1),\"\")","v":55},{"$f":"IFERROR(INDEX($B$2:$B$76,MATCH(ROWS($D$2:D56),$D$2:$D$77,0)),\"\")","v":"Procter & Gamble Services (Switzerland) SA"}]
[null,"Procter & Gamble Services Company NV",{"$f":"--ISNUMBER(IFERROR(SEARCH('PG Account Finder'!$B$4,B57,1),\"\"))","v":1},{"$f":"IF(C57=1,COUNTIF($C$2:C57,1),\"\")","v":56},{"$f":"IFERROR(INDEX($B$2:$B$76,MATCH(ROWS($D$2:D57),$D$2:$D$77,0)),\"\")","v":"Procter & Gamble Services Company NV"}]
[null,"Procter & Gamble Singapore Pte Ltd",{"$f":"--ISNUMBER(IFERROR(SEARCH('PG Account Finder'!$B$4,B58,1),\"\"))","v":1},{"$f":"IF(C58=1,COUNTIF($C$2:C58,1),\"\")","v":57},{"$f":"IFERROR(INDEX($B$2:$B$76,MATCH(ROWS($D$2:D58),$D$2:$D$77,0)),\"\")","v":"Procter & Gamble Singapore Pte Ltd"}]
[null,"Procter & Gamble Switzerland SARL",{"$f":"--ISNUMBER(IFERROR(SEARCH('PG Account Finder'!$B$4,B59,1),\"\"))","v":1},{"$f":"IF(C59=1,COUNTIF($C$2:C59,1),\"\")","v":58},{"$f":"IFERROR(INDEX($B$2:$B$76,MATCH(ROWS($D$2:D59),$D$2:$D$77,0)),\"\")","v":"Procter & Gamble Switzerland SARL"}]
[null,"Procter & Gamble Technical Centres Limited",{"$f":"--ISNUMBER(IFERROR(SEARCH('PG Account Finder'!$B$4,B60,1),\"\"))","v":1},{"$f":"IF(C60=1,COUNTIF($C$2:C60,1),\"\")","v":59},{"$f":"IFERROR(INDEX($B$2:$B$76,MATCH(ROWS($D$2:D60),$D$2:$D$77,0)),\"\")","v":"Procter & Gamble Technical Centres Limited"}]
[null,"Procter & Gamble UK",{"$f":"--ISNUMBER(IFERROR(SEARCH('PG Account Finder'!$B$4,B61,1),\"\"))","v":1},{"$f":"IF(C61=1,COUNTIF($C$2:C61,1),\"\")","v":60},{"$f":"IFERROR(INDEX($B$2:$B$76,MATCH(ROWS($D$2:D61),$D$2:$D$77,0)),\"\")","v":"Procter & Gamble UK"}]
[null,"Procter & Gamble Verwaltungs GmbH",{"$f":"--ISNUMBER(IFERROR(SEARCH('PG Account Finder'!$B$4,B62,1),\"\"))","v":1},{"$f":"IF(C62=1,COUNTIF($C$2:C62,1),\"\")","v":61},{"$f":"IFERROR(INDEX($B$2:$B$76,MATCH(ROWS($D$2:D62),$D$2:$D$77,0)),\"\")","v":"Procter & Gamble Verwaltungs GmbH"}]
[null,"Procter and Gamble Amiens SAS  ",{"$f":"--ISNUMBER(IFERROR(SEARCH('PG Account Finder'!$B$4,B63,1),\"\"))","v":1},{"$f":"IF(C63=1,COUNTIF($C$2:C63,1),\"\")","v":62},{"$f":"IFERROR(INDEX($B$2:$B$76,MATCH(ROWS($D$2:D63),$D$2:$D$77,0)),\"\")","v":"Procter and Gamble Amiens SAS  "}]
[null,"Procter and Gamble Czech Republic s.r.o",{"$f":"--ISNUMBER(IFERROR(SEARCH('PG Account Finder'!$B$4,B64,1),\"\"))","v":1},{"$f":"IF(C64=1,COUNTIF($C$2:C64,1),\"\")","v":63},{"$f":"IFERROR(INDEX($B$2:$B$76,MATCH(ROWS($D$2:D64),$D$2:$D$77,0)),\"\")","v":"Procter and Gamble Czech Republic s.r.o"}]
[null,"Procter and Gamble Retail Services BVBA",{"$f":"--ISNUMBER(IFERROR(SEARCH('PG Account Finder'!$B$4,B65,1),\"\"))","v":1},{"$f":"IF(C65=1,COUNTIF($C$2:C65,1),\"\")","v":64},{"$f":"IFERROR(INDEX($B$2:$B$76,MATCH(ROWS($D$2:D65),$D$2:$D$77,0)),\"\")","v":"Procter and Gamble Retail Services BVBA"}]
[null,"Procter and Gamble RSC",{"$f":"--ISNUMBER(IFERROR(SEARCH('PG Account Finder'!$B$4,B66,1),\"\"))","v":1},{"$f":"IF(C66=1,COUNTIF($C$2:C66,1),\"\")","v":65},{"$f":"IFERROR(INDEX($B$2:$B$76,MATCH(ROWS($D$2:D66),$D$2:$D$77,0)),\"\")","v":"Procter and Gamble RSC"}]
[null,"SAS SPF Beauté",{"$f":"--ISNUMBER(IFERROR(SEARCH('PG Account Finder'!$B$4,B67,1),\"\"))","v":1},{"$f":"IF(C67=1,COUNTIF($C$2:C67,1),\"\")","v":66},{"$f":"IFERROR(INDEX($B$2:$B$76,MATCH(ROWS($D$2:D67),$D$2:$D$77,0)),\"\")","v":"SAS SPF Beauté"}]
[null,"SPD Development Company Ltd",{"$f":"--ISNUMBER(IFERROR(SEARCH('PG Account Finder'!$B$4,B68,1),\"\"))","v":1},{"$f":"IF(C68=1,COUNTIF($C$2:C68,1),\"\")","v":67},{"$f":"IFERROR(INDEX($B$2:$B$76,MATCH(ROWS($D$2:D68),$D$2:$D$77,0)),\"\")","v":"SPD Development Company Ltd"}]
[null,"SPD Swiss Precision Diagnostics GmbH",{"$f":"--ISNUMBER(IFERROR(SEARCH('PG Account Finder'!$B$4,B69,1),\"\"))","v":1},{"$f":"IF(C69=1,COUNTIF($C$2:C69,1),\"\")","v":68},{"$f":"IFERROR(INDEX($B$2:$B$76,MATCH(ROWS($D$2:D69),$D$2:$D$77,0)),\"\")","v":"SPD Swiss Precision Diagnostics GmbH"}]
[null,"Tambrands, Inc.",{"$f":"--ISNUMBER(IFERROR(SEARCH('PG Account Finder'!$B$4,B70,1),\"\"))","v":1},{"$f":"IF(C70=1,COUNTIF($C$2:C70,1),\"\")","v":69},{"$f":"IFERROR(INDEX($B$2:$B$76,MATCH(ROWS($D$2:D70),$D$2:$D$77,0)),\"\")","v":"Tambrands, Inc."}]
[null,"The Dover Wipes Company",{"$f":"--ISNUMBER(IFERROR(SEARCH('PG Account Finder'!$B$4,B71,1),\"\"))","v":1},{"$f":"IF(C71=1,COUNTIF($C$2:C71,1),\"\")","v":70},{"$f":"IFERROR(INDEX($B$2:$B$76,MATCH(ROWS($D$2:D71),$D$2:$D$77,0)),\"\")","v":"The Dover Wipes Company"}]
[null,"The Gillette Company",{"$f":"--ISNUMBER(IFERROR(SEARCH('PG Account Finder'!$B$4,B72,1),\"\"))","v":1},{"$f":"IF(C72=1,COUNTIF($C$2:C72,1),\"\")","v":71},{"$f":"IFERROR(INDEX($B$2:$B$76,MATCH(ROWS($D$2:D72),$D$2:$D$77,0)),\"\")","v":"The Gillette Company"}]
[null,"The P&G Distributing LLC",{"$f":"--ISNUMBER(IFERROR(SEARCH('PG Account Finder'!$B$4,B73,1),\"\"))","v":1},{"$f":"IF(C73=1,COUNTIF($C$2:C73,1),\"\")","v":72},{"$f":"IFERROR(INDEX($B$2:$B$76,MATCH(ROWS($D$2:D73),$D$2:$D$77,0)),\"\")","v":"The P&G Distributing LLC"}]
[null,"THE PROCTER & GAMBLE COMPANY",{"$f":"--ISNUMBER(IFERROR(SEARCH('PG Account Finder'!$B$4,B74,1),\"\"))","v":1},{"$f":"IF(C74=1,COUNTIF($C$2:C74,1),\"\")","v":73},{"$f":"IFERROR(INDEX($B$2:$B$76,MATCH(ROWS($D$2:D74),$D$2:$D$77,0)),\"\")","v":"THE PROCTER & GAMBLE COMPANY"}]
[null,"THE PROCTER & GAMBLE US BUSINESS SERVICES COMPANY",{"$f":"--ISNUMBER(IFERROR(SEARCH('PG Account Finder'!$B$4,B75,1),\"\"))","v":1},{"$f":"IF(C75=1,COUNTIF($C$2:C75,1),\"\")","v":74},{"$f":"IFERROR(INDEX($B$2:$B$76,MATCH(ROWS($D$2:D75),$D$2:$D$77,0)),\"\")","v":"THE PROCTER & GAMBLE US BUSINESS SERVICES COMPANY"}]
[null,"Wella UK Holdings Limited",{"$f":"--ISNUMBER(IFERROR(SEARCH('PG Account Finder'!$B$4,B76,1),\"\"))","v":1},{"$f":"IF(C76=1,COUNTIF($C$2:C76,1),\"\")","v":75},{"$f":"IFERROR(INDEX($B$2:$B$76,MATCH(ROWS($D$2:D76),$D$2:$D$77,0)),\"\")","v":"Wella UK Holdings Limited"}]
[null,null,null,null,{"$f":"IFERROR(INDEX($B$2:$B$76,MATCH(ROWS($D$2:D77),$D$2:$D$77,0)),\"\")","v":""}]
[null,null,null,null,{"$f":"IFERROR(INDEX($B$2:$B$76,MATCH(ROWS($D$2:D78),$D$2:$D$77,0)),\"\")","v":""}]

{"sheet":"Database for mini tool","index":2,"n_rows":187,"n_cols":12,"rows_kept":187,"cut":false,"hidden":true,"merged":[[0,5,0,10],[0,1,0,4]]}
["Option","SUPPLIER input",null,null,null,"RESULTS - OUTPUT"]
["ID","TYPE","ORDER BY (Legal Entity)","DESTINATION (SHIP TO)","CITY","AAA account ","LE","PG name","Company address","Country","VAT ID"]
[{"$f":"B3&\"|\"&C3&\"|\"&D3&\"|\"&E3","v":"GOODS|Procter & Gamble International Operations SA|Belgium|"},"GOODS","Procter & Gamble International Operations SA","Belgium",null,"AAA653300376",800,"Procter & Gamble International Operations SA","PO Box 999, 47 Route de Saint Georges\n1213 Petit Lancy, Switzerland, c/o Fiscal Representative, Procter & Gamble Manufacturing Belgium NV, Temselaan 55, Strombeek Bever B-1853, Belgium","Belgium ","BE 0.471.948.550"]
[{"$f":"B4&\"|\"&C4&\"|\"&D4&\"|\"&E4","v":"GOODS|Procter & Gamble International Operations SA|Czech Republic|"},"GOODS","Procter & Gamble International Operations SA","Czech Republic",null,"AAA412339624",800,"Procter & Gamble International Operations SA","Route De Saint-Georges 47,\nPetit-Lancy, CH 1213, Geneva, Switzerland","Czech Republic","CZ680454432"]
["GOODS|Procter & Gamble International Operations SA|France|","GOODS","Procter & Gamble International Operations SA","France",null,"AAA755944923",800,"Procter & Gamble International Operations SA","PO Box 999, 47 Route de Saint Georges\n1213 Petit Lancy, Switzerland\nc/o Fiscal Representative Procter & Gamble Holding France SAS\n163 Quai Aulagnier 92600 Asnieres Sur Seine. France","France","FR87431438662"]
["GOODS|Procter & Gamble International Operations SA|Germany|","GOODS","Procter & Gamble International Operations SA","Germany",null,"AAA165551755",800,"Procter & Gamble International Operations SA","47, Route de Saint Georges, 1213 Petit Lancy, Switzerland","Germany","DE 812962775"]
["GOODS|Procter & Gamble International Operations SA|Hungary|","GOODS","Procter & Gamble International Operations SA","Hungary",null,"AAA745096719",800,"Procter & Gamble International Operations SA","47, Petit-Lancy CH 1213, Geneva\nSwitzerland, Reg No CH-170-3007610-6","Hungary","HU26950709"]
["GOODS|Procter & Gamble International Operations SA|Netherlands|","GOODS","Procter & Gamble International Operations SA","Netherlands",null,"AAA008556417",800,"Procter & Gamble International Operations SA","PO Box 999, 47 Route de Saint Georges\n1213 Petit Lancy, Switzerland\nc/o Fiscal Representative\nP&G Nederland BV\nWatermanweg 100, 3067 GG Rotterdam, Netherlands","Netherlands","NL808751517B01"]
["GOODS|Procter & Gamble International Operations SA|Spain|","GOODS","Procter & Gamble International Operations SA","Spain",null,"AAA292926425",800,"Procter & Gamble International Operations SA","47, Route de Saint Georges, 1213 Petit Lancy, Switzerland \nc/o Representante Fiscal, Procter & Gamble Espana SA, \nAvenida de Bruselas 24, 28108 Madrid, Spain","Spain","ES N0391140A"]
["GOODS|Procter & Gamble International Operations SA|Switzerland|","GOODS","Procter & Gamble International Operations SA","Switzerland",null,"AAA958881831",800,"Procter & Gamble International Operations SA","47 Route de Saint Georges, \n1213 Petit Lancy","Switzerland","CHE-107.889.864 TVA"]
["SERVICES|Procter & Gamble International Operations SA|Switzerland|","SERVICES","Procter & Gamble International Operations SA","Switzerland",null,"AAA958881831",800,"Procter & Gamble International Operations SA","47 Route de Saint Georges, \n1213 Petit Lancy","Switzerland","CHE-107.889.864 TVA"]
["GOODS|Procter & Gamble International Operations SA|United Kingdom|","GOODS","Procter & Gamble International Operations SA","United Kingdom",null,"AAA561172610",800,"Procter & Gamble International Operations SA","PO Box 999, 47 Route de Saint Georges\n1213 Petit Lancy, Switzerland\n","United Kingdom","GB 176 4248 87"]
["GOODS|Procter & Gamble – Rakona s.r.o.|Czech Republic|","GOODS","Procter & Gamble – Rakona s.r.o.","Czech Republic",null,"AAA210627501",300,"Procter & Gamble – Rakona s.r.o.","Procter & Gamble – Rakona s.r.o.\nOttova 402\n26932 Rakovnik","Czech Republic","CZ14801396"]
["SERVICES|Procter & Gamble – Rakona s.r.o.|Czech Republic|","SERVICES","Procter & Gamble – Rakona s.r.o.","Czech Republic",null,"AAA210627501",300,"Procter & Gamble – Rakona s.r.o.","Procter & Gamble – Rakona s.r.o.\nOttova 402\n26932 Rakovnik","Czech Republic","CZ14801396"]
["GOODS|Procter & Gamble Pharmaceuticals France SAS|France|","GOODS","Procter & Gamble Pharmaceuticals France SAS","France",null,"AAA589552256",307,"Procter & Gamble Pharmaceuticals France SAS","164 Quai Aulagnier, 92600 Asnieres Sur Seine, France\n","France","FR 18572020642"]
["SERVICES|Procter & Gamble Pharmaceuticals France SAS|France|","SERVICES","Procter & Gamble Pharmaceuticals France SAS","France",null,"AAA589552256",307,"Procter & Gamble Pharmaceuticals France SAS","164 Quai Aulagnier, 92600 Asnieres Sur Seine, France\n","France","FR 18572020642"]
["GOODS|Procter & Gamble Holding France SAS|France|","GOODS","Procter & Gamble Holding France SAS","France",null,"AAA660055476",310,"Procter & Gamble Holding France SAS","TSA 72200, 163 Quai Aulagnier, 92600 Asnieres Sur Seine, France\n","France","FR 43542106109"]
["SERVICES|Procter & Gamble Holding France SAS|France|","SERVICES","Procter & Gamble Holding France SAS","France",null,"AAA660055476",310,"Procter & Gamble Holding France SAS","TSA 72200, 163 Quai Aulagnier, 92600 Asnieres Sur Seine, France\n","France","FR 43542106109"]
["GOODS|Procter & Gamble Holding GmbH|Germany|","GOODS","Procter & Gamble Holding GmbH","Germany",null,"AAA036507374",330,"Procter & Gamble Holding GmbH","CAPA, Sulzbacher Str.40-50, 65823 Schwalbach a. Ts, Germany","Germany","DE 113823034"]
["SERVICES|Procter & Gamble Holding GmbH|Germany|","SERVICES","Procter & Gamble Holding GmbH","Germany",null,"AAA036507374",330,"Procter & Gamble Holding GmbH","CAPA, Sulzbacher Str.40-50, 65823 Schwalbach a. Ts, Germany","Germany","DE 113823034"]
["GOODS|Procter & Gamble GmbH|Germany|","GOODS","Procter & Gamble GmbH","Germany",null,"AAA783675150",335,"Procter & Gamble GmbH","CAPA, Sulzbacher Str.40-50, 65824 Schwalbach am Taunus, Germany ","Germany","DE 811133976 "]
["SERVICES|Procter & Gamble GmbH|Germany|","SERVICES","Procter & Gamble GmbH","Germany",null,"AAA783675150",335,"Procter & Gamble GmbH","CAPA, Sulzbacher Str.40-50, 65824 Schwalbach am Taunus, Germany ","Germany","DE 811133976 "]
["GOODS|Hyginett Kft|Hungary|","GOODS","Hyginett Kft","Hungary",null,"AAA989269535",344,"Hyginett Kft","Hyginett Kft\nHatár út 3, 2141 Csömör, Hungary","Hungary","HU10523667"]
["SERVICES|Hyginett Kft|Hungary|","SERVICES","Hyginett Kft","Hungary",null,"AAA989269535",344,"Hyginett Kft","Hyginett Kft\nHatár út 3, 2141 Csömör, Hungary","Hungary","HU10523667"]
["GOODS|Procter & Gamble Magyarország Nagykereskedelmi Kkt.|Hungary|","GOODS","Procter & Gamble Magyarország Nagykereskedelmi Kkt.","Hungary",null,"AAA682665294",345,"Procter & Gamble Magyarország Nagykereskedelmi Kkt.","Procter & Gamble Magyarország Nagykereskedelmi Kkt.\n1134 Budapest, Váci út 35., Hungary","Hungary","HU28160447"]
["GOODS|Procter & Gamble Magyarország Nagykereskedelmi Kkt.|Hungary|","GOODS","Procter & Gamble Magyarország Nagykereskedelmi Kkt.","Hungary",null,"AAA682665294",345,"Procter & Gamble Magyarország Nagykereskedelmi Kkt.","Procter & Gamble Magyarország Nagykereskedelmi Kkt.\n1134 Budapest, Váci út 35., Hungary","Hungary","HU28160447"]
["GOODS|Procter & Gamble Mataró SL|Spain|","GOODS","Procter & Gamble Mataró SL","Spain",null,"AAA085770667",423,"Procter & Gamble Mataró SL","Avenida de Bruselas 24, 28108 Alcobendas, Madrid, Spain\n","Spain","ES B82378431"]
["SERVICES|Procter & Gamble Mataró SL|Spain|","SERVICES","Procter & Gamble Mataró SL","Spain",null,"AAA085770667",423,"Procter & Gamble Mataró SL","Avenida de Bruselas 24, 28108 Alcobendas, Madrid, Spain\n","Spain","ES B82378431"]
["GOODS|Procter & Gamble Switzerland SARL|Switzerland|","GOODS","Procter & Gamble Switzerland SARL","Switzerland",null,"AAA847130861",430,"Procter & Gamble Switzerland SARL","47, Route de Saint Georges, 1213 Petit Lancy, Switzerland","Switzerland","CHE-105.530.062 TVA "]
["SERVICES|Procter & Gamble Switzerland SARL|Switzerland|","SERVICES","Procter & Gamble Switzerland SARL","Switzerland",null,"AAA847130861",430,"Procter & Gamble Switzerland SARL","47, Route de Saint Georges, 1213 Petit Lancy, Switzerland","Switzerland","CHE-105.530.062 TVA "]
["GOODS|Detergent Products AG|Switzerland|","GOODS","Detergent Products AG","Switzerland",null,"AAA631681756",431,"Detergent Products AG","47, Route de Saint Georges, 1213 Petit Lancy, Switzerland\n","Switzerland","CHE108.814.490 TVA"]
["SERVICES|Detergent Products AG|Switzerland|","SERVICES","Detergent Products AG","Switzerland",null,"AAA631681756",431,"Detergent Products AG","47, Route de Saint Georges, 1213 Petit Lancy, Switzerland\n","Switzerland","CHE108.814.490 TVA"]
["GOODS|Procter & Gamble Nederland BV|Netherlands|","GOODS","Procter & Gamble Nederland BV","Netherlands",null,"AAA793903865",505,"Procter & Gamble Nederland BV","Watermanweg 100, 3067 GG, Rotterdam, Netherlands","Netherlands","NL 002980381 B01 "]
["SERVICES|Procter & Gamble Nederland BV|Netherlands|","SERVICES","Procter & Gamble Nederland BV","Netherlands",null,"AAA793903865",505,"Procter & Gamble Nederland BV","Watermanweg 100, 3067 GG, Rotterdam, Netherlands","Netherlands","NL 002980381 B01 "]
["GOODS|Procter & Gamble Distribution Company Europe BVBA|Belgium|","GOODS","Procter & Gamble Distribution Company Europe BVBA","Belgium",null,"AAA850545401",511,"Procter & Gamble Distribution Company Europe BVBA","Temselaan 100, 1853 Strombeek-Bever, Belgium","Belgium ","BE 0.458.138.225"]
["SERVICES|Procter & Gamble Distribution Company Europe BVBA|Belgium|","SERVICES","Procter & Gamble Distribution Company Europe BVBA","Belgium",null,"AAA850545401",511,"Procter & Gamble Distribution Company Europe BVBA","Temselaan 100, 1853 Strombeek-Bever, Belgium","Belgium ","BE 0.458.138.225"]
["GOODS|Procter & Gamble France SAS|France|","GOODS","Procter & Gamble France SAS","France",null,"AAA084784800",577,"Procter & Gamble France SAS","TSA 72200, 163 Quai Aulagnier, 92600 Asnieres Sur Seine, France\n","France","FR 25391543576"]
["SERVICES|Procter & Gamble France SAS|France|","SERVICES","Procter & Gamble France SAS","France",null,"AAA084784800",577,"Procter & Gamble France SAS","TSA 72200, 163 Quai Aulagnier, 92600 Asnieres Sur Seine, France\n","France","FR 25391543576"]
["GOODS|Procter and Gamble Amiens SAS  |France|","GOODS","Procter and Gamble Amiens SAS  ","France",null,"AAA683422513",579,"Procter and Gamble Amiens SAS  ","TSA 51100, 163 Quai Aulagnier, 92600 Asnieres Sur Seine, France","France","FR 60391548955"]
["SERVICES|Procter and Gamble Amiens SAS  |France|","SERVICES","Procter and Gamble Amiens SAS  ","France",null,"AAA683422513",579,"Procter and Gamble Amiens SAS  ","TSA 51100, 163 Quai Aulagnier, 92600 Asnieres Sur Seine, France","France","FR 60391548955"]
["GOODS|Procter & Gamble Manufacturing GmbH|Germany|Schwalbach am Taunus","GOODS","Procter & Gamble Manufacturing GmbH","Germany","Schwalbach am Taunus","AAA811158096",613,"Procter & Gamble Manufacturing GmbH","Sulzbacher Str. 40-50, 65824 Schwalbach am Taunus, Germany","Germany","DE 172992652 "]
["GOODS|Procter & Gamble Manufacturing GmbH|Germany|Crailsheim","GOODS","Procter & Gamble Manufacturing GmbH","Germany","Crailsheim","AAA051590941",613,"Procter & Gamble Manufacturing GmbH","Procter and Gamble Str.1\nD-74564 Crailsheim\nGermany","Germany","DE 172992652 "]
["GOODS|Procter & Gamble Manufacturing GmbH|Germany|Euskirchen","GOODS","Procter & Gamble Manufacturing GmbH","Germany","Euskirchen","AAA409608114",613,"Procter & Gamble Manufacturing GmbH","Rechnungsprufung\nProcter & Gamble Strasse\n53877 Euskirchen,\nGermany","Germany","DE 172992652"]
["GOODS|Procter & Gamble Manufacturing GmbH|Germany|Gross Gerau","GOODS","Procter & Gamble Manufacturing GmbH","Germany","Gross Gerau","AAA537112880",613,"Procter & Gamble Manufacturing GmbH","Procter & Gamble Str.1\nD-64521 Gross Gerau\nGermany","Germany","DE 172992652"]
["GOODS|Procter & Gamble Manufacturing GmbH|Germany|Huenfeld","GOODS","Procter & Gamble Manufacturing GmbH","Germany","Huenfeld","AAA538596883",613,"Procter & Gamble Manufacturing GmbH","Wellastrasse 2-4\nD-36088\nHuenfeld\nGermany","Germany","DE 172992652"]
["GOODS|Procter & Gamble Manufacturing GmbH|Germany|Steinberg","GOODS","Procter & Gamble Manufacturing GmbH","Germany","Steinberg","AAA755078326",613,"Procter & Gamble Manufacturing GmbH","Hauptstrasse 17\n08237 Steinberg\nGermany","Germany","DE 172992652"]
["GOODS|Procter & Gamble Manufacturing GmbH|Germany|Weiterstadt","GOODS","Procter & Gamble Manufacturing GmbH","Germany","Weiterstadt","AAA765789565",613,"Procter & Gamble Manufacturing GmbH","Distribution Centre Weiterstadt\nZeppelinstrasse 10\n64331 Weiterstadt\nGermany","Germany","DE 172992652"]
["GOODS|Procter & Gamble Manufacturing GmbH|Germany|Worms","GOODS","Procter & Gamble Manufacturing GmbH","Germany","Worms","AAA962930590",613,"Procter & Gamble Manufacturing GmbH","Mainzer strasse. 176\nD-67547 Worms\nGermany","Germany","DE 172992652"]
["SERVICES|Procter & Gamble Manufacturing GmbH|Germany|Schwalbach am Taunus","SERVICES","Procter & Gamble Manufacturing GmbH","Germany","Schwalbach am Taunus","AAA811158096",613,"Procter & Gamble Manufacturing GmbH","Sulzbacher Str. 40-50, 65824 Schwalbach am Taunus, Germany","Germany","DE 172992652 "]
["GOODS|Procter & Gamble Service GmbH|Germany|","GOODS","Procter & Gamble Service GmbH","Germany",null,"AAA051980258",640,"Procter & Gamble Service GmbH","CAPA, Sulzbacher Str.40-50, 65824 Schwalbach am Taunus, Germany","Germany","DE 814642039"]
["SERVICES|Procter & Gamble Service GmbH|Germany|","SERVICES","Procter & Gamble Service GmbH","Germany",null,"AAA051980258",640,"Procter & Gamble Service GmbH","CAPA, Sulzbacher Str.40-50, 65824 Schwalbach am Taunus, Germany","Germany","DE 814642039"]
["GOODS|Procter & Gamble Product Supply UK Limited|United Kingdom|","GOODS","Procter & Gamble Product Supply UK Limited","United Kingdom",null,"AAA500987433",661,"Procter & Gamble Product Supply UK Limited","All PO Box, Cobalt 12, Silver Fox Way, Newcastle upon Tyne, NE27 0QW, United Kingdom","United Kingdom","GB 499718667 "]
["SERVICES|Procter & Gamble Product Supply UK Limited|United Kingdom|","SERVICES","Procter & Gamble Product Supply UK Limited","United Kingdom",null,"AAA500987433",661,"Procter & Gamble Product Supply UK Limited","All PO Box, Cobalt 12, Silver Fox Way, Newcastle upon Tyne, NE27 0QW, United Kingdom","United Kingdom","GB 499718667 "]
["GOODS|Procter & Gamble UK|United Kingdom|PO BOX 135","GOODS","Procter & Gamble UK","United Kingdom","PO BOX 135","AAA318128931",686,"Procter & Gamble UK","PO Box 135, Cobalt 12, Silver Fox Way, Newcastle upon Tyne, NE27 0QW, United Kingdom","United Kingdom","GB 675491595"]
["SERVICES|Procter & Gamble UK|United Kingdom|PO BOX 135","SERVICES","Procter & Gamble UK","United Kingdom","PO BOX 135","AAA318128931",686,"Procter & Gamble UK","PO Box 135, Cobalt 12, Silver Fox Way, Newcastle upon Tyne, NE27 0QW, United Kingdom","United Kingdom","GB 675491595"]
["GOODS|Procter & Gamble UK|United Kingdom|PO BOX 77","GOODS","Procter & Gamble UK","United Kingdom","PO BOX 77","AAA977405323",686,"Procter & Gamble UK","PO Box 77, Cobalt 12A, Silver Fox Way, Newcastle upon Tyne, NE27 0QW, United Kingdom \n","United Kingdom","GB 675491595"]
["GOODS|Procter & Gamble Technical Centres Limited|United Kingdom|","GOODS","Procter & Gamble Technical Centres Limited","United Kingdom",null,"AAA807490495",687,"Procter & Gamble Technical Centres Limited","PO Box 135, Cobalt 12, Silver Fox Way, Newcastle upon Tyne, NE27 0QW, United Kingdom \n","United Kingdom","GB 675541807"]
["SERVICES|Procter & Gamble Technical Centres Limited|United Kingdom|","SERVICES","Procter & Gamble Technical Centres Limited","United Kingdom",null,"AAA807490495",687,"Procter & Gamble Technical Centres Limited","PO Box 135, Cobalt 12, Silver Fox Way, Newcastle upon Tyne, NE27 0QW, United Kingdom \n","United Kingdom","GB 675541807"]
["GOODS|Procter & Gamble Europe SA|Switzerland|","GOODS","Procter & Gamble Europe SA","Switzerland",null,"AAA709506257",700,"Procter & Gamble Europe SA","47, Route de Saint Georges, 1213 Petit Lancy, Switzerland\n","Switzerland","CHE-103.587.364 TVA"]
["SERVICES|Procter & Gamble Europe SA|Switzerland|","SERVICES","Procter & Gamble Europe SA","Switzerland",null,"AAA709506257",700,"Procter & Gamble Europe SA","47, Route de Saint Georges, 1213 Petit Lancy, Switzerland\n","Switzerland","CHE-103.587.364 TVA"]
["GOODS|Procter & Gamble Blois SAS|France|","GOODS","Procter & Gamble Blois SAS","France",null,"AAA495256992",730,"Procter & Gamble Blois SAS","TSA 51100, 163 Quai Aulagnier, 92600 Asnieres Sur Seine, France\n","France","FR 55419222245"]
["SERVICES|Procter & Gamble Blois SAS|France|","SERVICES","Procter & Gamble Blois SAS","France",null,"AAA495256992",730,"Procter & Gamble Blois SAS","TSA 51100, 163 Quai Aulagnier, 92600 Asnieres Sur Seine, France\n","France","FR 55419222245"]
["GOODS|Procter & Gamble España SA|Spain|","GOODS","Procter & Gamble España SA","Spain",null,"AAA741291926",747,"Procter & Gamble España SA","Avenida de Bruselas 24, 28108 Alcobendas, Madrid, Spain\n","Spain","ES A28198752"]
["SERVICES|Procter & Gamble España SA|Spain|","SERVICES","Procter & Gamble España SA","Spain",null,"AAA741291926",747,"Procter & Gamble España SA","Avenida de Bruselas 24, 28108 Alcobendas, Madrid, Spain\n","Spain","ES A28198752"]
["GOODS|Procter & Gamble Services (Switzerland) SA|Switzerland|","GOODS","Procter & Gamble Services (Switzerland) SA","Switzerland",null,"AAA137120663",752,"Procter & Gamble Services (Switzerland) SA","47, Route de Saint Georges, 1213 Petit Lancy, Switzerland\n","Switzerland","CHE-105.328.282 TVA"]
["SERVICES|Procter & Gamble Services (Switzerland) SA|Switzerland|","SERVICES","Procter & Gamble Services (Switzerland) SA","Switzerland",null,"AAA137120663",752,"Procter & Gamble Services (Switzerland) SA","47, Route de Saint Georges, 1213 Petit Lancy, Switzerland\n","Switzerland","CHE-105.328.282 TVA"]
["GOODS|Procter & Gamble Manufacturing GmbH|Germany|Kronberg","GOODS","Procter & Gamble Manufacturing GmbH","Germany","Kronberg","AAA390905404",865,"Procter & Gamble Manufacturing GmbH","Frankfurter Str. 145, 61476 Kronberg, Germany","Germany","DE172992652"]
[{"$f":"B68&\"|\"&C68&\"|\"&D68&\"|\"&E68","v":"GOODS|Procter & Gamble Manufacturing GmbH|Germany|Marktheidenfeld"},"GOODS","Procter & Gamble Manufacturing GmbH","Germany","Marktheidenfeld","AAA794522896",865,"Procter & Gamble Manufacturing GmbH","Werk 9611\nBaumhofstrasse 40\n97828 Marktheidenfeld\nGermany","Germany","DE172992652"]
["GOODS|Procter & Gamble Manufacturing GmbH|Germany|Marktheidenfeld-Altfeld","GOODS","Procter & Gamble Manufacturing GmbH","Germany","Marktheidenfeld-Altfeld","AAA031369192",865,"Procter & Gamble Manufacturing GmbH","Werk 9612\nMax-Braun-Strasse 12\n97828 Marktheidenfeld-Altfeld\nGermany","Germany","DE172992652"]
["GOODS|Procter & Gamble Manufacturing GmbH|Germany|Wallduern","GOODS","Procter & Gamble Manufacturing GmbH","Germany","Wallduern","AAA093010239",865,"Procter & Gamble Manufacturing GmbH","Werk 9610\nWaldstrasse 9\n74731 Wallduern\nGermany","Germany","DE172992652"]
["SERVICES|Procter & Gamble Manufacturing GmbH|Germany| Kronberg","SERVICES","Procter & Gamble Manufacturing GmbH","Germany"," Kronberg","AAA390905404",865,"Procter & Gamble Manufacturing GmbH","Werk 9609, Frankfurter Str. 145, 61476 Kronberg, Germany","Germany","DE172992652"]
["SERVICES|Procter & Gamble Manufacturing GmbH|Germany|Marktheidenfeld","SERVICES","Procter & Gamble Manufacturing GmbH","Germany","Marktheidenfeld","AAA794522896",865,"Procter & Gamble Manufacturing GmbH","Werk 9611\nBaumhofstrasse 40\n97828 Marktheidenfeld\nGermany","Germany","DE172992652"]
["SERVICES|Procter & Gamble Manufacturing GmbH|Germany| Wallduern","SERVICES","Procter & Gamble Manufacturing GmbH","Germany"," Wallduern","AAA093010239",865,"Procter & Gamble Manufacturing GmbH","Werk 9610\nWaldstrasse 9\n74731 Wallduern\nGermany","Germany","DE172992652"]
["GOODS|Gillette UK Limited|United Kingdom|","GOODS","Gillette UK Limited","United Kingdom",null,"AAA276801248",869,"Gillette UK Limited","PO Box 135, Cobalt 12, Silver Fox Way, Newcastle upon Tyne, NE27 0QW, United Kingdom \n","United Kingdom","GB 499 7186 67"]
["SERVICES|Gillette UK Limited|United Kingdom|","SERVICES","Gillette UK Limited","United Kingdom",null,"AAA276801248",869,"Gillette UK Limited","PO Box 135, Cobalt 12, Silver Fox Way, Newcastle upon Tyne, NE27 0QW, United Kingdom \n","United Kingdom","GB 499 7186 67"]
["GOODS|Procter & Gamble Netherlands Services BV|Netherlands|","GOODS","Procter & Gamble Netherlands Services BV","Netherlands",null,"AAA019230671",899,"Procter & Gamble Netherlands Services BV","Box 43, Postbus 1345, 3000 BH Rotterdam, Netherlands\n","Netherlands","NL 811536713 B01"]
["SERVICES|Procter & Gamble Netherlands Services BV|Netherlands|","SERVICES","Procter & Gamble Netherlands Services BV","Netherlands",null,"AAA019230671",899,"Procter & Gamble Netherlands Services BV","Box 43, Postbus 1345, 3000 BH Rotterdam, Netherlands\n","Netherlands","NL 811536713 B01"]
["GOODS|Procter & Gamble Germany GmbH & Co Operations OHG|Germany|","GOODS","Procter & Gamble Germany GmbH & Co Operations OHG","Germany",null,"AAA979015336",901,"Procter & Gamble Germany GmbH & Co Operations OHG","Sulzbacher Str. 40, 65824 Schwalbach am Taunus, Germany \n","Germany","DE 813714040"]
["SERVICES|Procter & Gamble Germany GmbH & Co Operations OHG|Germany|","SERVICES","Procter & Gamble Germany GmbH & Co Operations OHG","Germany",null,"AAA979015336",901,"Procter & Gamble Germany GmbH & Co Operations OHG","Sulzbacher Str. 40, 65824 Schwalbach am Taunus, Germany \n","Germany","DE 813714040"]
["GOODS|Procter and Gamble Czech Republic s.r.o|Czech Republic|","GOODS","Procter and Gamble Czech Republic s.r.o","Czech Republic",null,"AAA617269444",903," Procter and Gamble Czech Republic s.r.o","Procter and Gamble Czech Republic s.r.o\nOttova 402\n26932 Rakovnik","Czech Republic","CZ27086721"]
["SERVICES|Procter and Gamble Czech Republic s.r.o|Czech Republic|","SERVICES","Procter and Gamble Czech Republic s.r.o","Czech Republic",null,"AAA617269444",903," Procter and Gamble Czech Republic s.r.o","Procter and Gamble Czech Republic s.r.o\nOttova 402\n26932 Rakovnik","Czech Republic","CZ27086721"]
["GOODS|Procter and Gamble RSC|Hungary|","GOODS","Procter and Gamble RSC","Hungary",null,"AAA284961521",908,"Procter and Gamble RSC","Kisfaludy utca 38.\n1082 Budapest, \nHungary","Hungary","HU13097596"]
["SERVICES|Procter and Gamble RSC|Hungary|","SERVICES","Procter and Gamble RSC","Hungary",null,"AAA284961521",908,"Procter and Gamble RSC","Kisfaludy utca 38.\n1082 Budapest, \nHungary","Hungary","HU13097596"]
["GOODS|Procter & Gamble Germany GmbH|Germany|","GOODS","Procter & Gamble Germany GmbH","Germany",null,"AAA655366631",917,"Procter & Gamble Germany GmbH","Sulzbacher Str. 40, 65824 Schwalbach am Taunus, Germany \n","Germany","DE 814666546"]
["SERVICES|Procter & Gamble Germany GmbH|Germany|","SERVICES","Procter & Gamble Germany GmbH","Germany",null,"AAA655366631",917,"Procter & Gamble Germany GmbH","Sulzbacher Str. 40, 65824 Schwalbach am Taunus, Germany \n","Germany","DE 814666546"]
["GOODS|Laboratorios Vicks SL|Spain|","GOODS","Laboratorios Vicks SL","Spain",null,"AAA900924911",918,"Laboratorios Vicks SL","Avenida de Bruselas 24, 28108 Alcobendas, Madrid, Spain\n","Spain","ES B83871236"]
["SERVICES|Laboratorios Vicks SL|Spain|","SERVICES","Laboratorios Vicks SL","Spain",null,"AAA900924911",918,"Laboratorios Vicks SL","Avenida de Bruselas 24, 28108 Alcobendas, Madrid, Spain\n","Spain","ES B83871236"]
["GOODS|P&G Prestige Service GmbH|Germany|","GOODS","P&G Prestige Service GmbH","Germany",null,"AAA913599320",944,"P&G Prestige Service GmbH","CAPA, Sulzbacher Str.40-50, 65824 Schwalbach a. Ts \n","Germany","DE 263193805"]
["SERVICES|P&G Prestige Service GmbH|Germany|","SERVICES","P&G Prestige Service GmbH","Germany",null,"AAA913599320",944,"P&G Prestige Service GmbH","CAPA, Sulzbacher Str.40-50, 65824 Schwalbach a. Ts \n","Germany","DE 263193805"]
["GOODS|Procter & Gamble Acquisition GmbH |Germany|","GOODS","Procter & Gamble Acquisition GmbH ","Germany",null,"AAA200848620",2022,"Procter & Gamble Acquisition GmbH ","Sulzbacher Str. 40, Schwalbach am Taunus, 65824","Germany","NOT VAT REGISTERED"]
["SERVICES|Procter & Gamble Acquisition GmbH |Germany|","SERVICES","Procter & Gamble Acquisition GmbH ","Germany",null,"AAA200848621",2023,"Procter & Gamble Acquisition GmbH ","Sulzbacher Str. 40, Schwalbach am Taunus, 65825","Germany","NOT VAT REGISTERED"]
["GOODS|Gillette Management LLC|United Kingdom|","GOODS","Gillette Management LLC","United Kingdom",null,"AAA927058719",2041,"Gillette Management LLC","The Heights, Brooklands, Weybridge, Surrey, KT13 0XP","United Kingdom","GB 499 7186 67"]
["SERVICES|Gillette Management LLC|United Kingdom|","SERVICES","Gillette Management LLC","United Kingdom",null,"AAA927058719",2041,"Gillette Management LLC","The Heights, Brooklands, Weybridge, Surrey, KT13 0XP","United Kingdom","GB 499 7186 67"]
["GOODS|Procter & Gamble Verwaltungs GmbH|Germany|","GOODS","Procter & Gamble Verwaltungs GmbH","Germany",null,"AAA292849239",2046,"Procter & Gamble Verwaltungs GmbH","Sulzbacher Str 40.65824 Schwalbach a.Ts","Germany","DE 248103249"]
["SERVICES|Procter & Gamble Verwaltungs GmbH|Germany|","SERVICES","Procter & Gamble Verwaltungs GmbH","Germany",null,"AAA292849239",2046,"Procter & Gamble Verwaltungs GmbH","Sulzbacher Str 40.65824 Schwalbach a.Ts","Germany","DE 248103249"]
["GOODS|Procter & Gamble Investment GmbH|Germany|","GOODS","Procter & Gamble Investment GmbH","Germany",null,"AAA598808392",2056,"Procter & Gamble Investment GmbH","Frankfurter Str. 145, Kronberg im Taunus, 61476","Germany","NOT VAT REGISTERED"]
["SERVICES|Procter & Gamble Investment GmbH|Germany|","SERVICES","Procter & Gamble Investment GmbH","Germany",null,"AAA598808393",2057,"Procter & Gamble Investment GmbH","Frankfurter Str. 145, Kronberg im Taunus, 61477","Germany","NOT VAT REGISTERED"]
["GOODS|Procter & Gamble Manufacturing Berlin GmbH|Germany|","GOODS","Procter & Gamble Manufacturing Berlin GmbH","Germany",null,"AAA156390171",2066,"Procter & Gamble Manufacturing Berlin GmbH","Oberlandstr. 75-84, 12099 Berlin, Germany","Germany","DE 270862054"]
["SERVICES|Procter & Gamble Manufacturing Berlin GmbH|Germany|","SERVICES","Procter & Gamble Manufacturing Berlin GmbH","Germany",null,"AAA156390171",2066,"Procter & Gamble Manufacturing Berlin GmbH","Oberlandstr. 75-84, 12099 Berlin, Germany","Germany","DE 270862054"]
["GOODS|Braun-Gillette Immobilien GmbH & Co. KG|Germany|","GOODS","Braun-Gillette Immobilien GmbH & Co. KG","Germany",null,"AAA643660392",2143,"Braun-Gillette Immobilien GmbH & Co. KG","Frankfurter Str. 145, 61476 Kronberg im Taunus, Germany","Germany","DE 250154112"]
["SERVICES|Braun-Gillette Immobilien GmbH & Co. KG|Germany|","SERVICES","Braun-Gillette Immobilien GmbH & Co. KG","Germany",null,"AAA643660392",2143,"Braun-Gillette Immobilien GmbH & Co. KG","Frankfurter Str. 145, 61476 Kronberg im Taunus, Germany","Germany","DE 250154112"]
["GOODS|SPD Swiss Precision Diagnostics GmbH|United Kingdom|","GOODS","SPD Swiss Precision Diagnostics GmbH","United Kingdom",null,"AAA099619256",2151,"SPD Swiss Precision Diagnostics GmbH","47, Route de Saint Georges, 1213 Petit Lancy, Switzerland\n","Switzerland","CHE-113.331.027 "]
["SERVICES|SPD Swiss Precision Diagnostics GmbH|United Kingdom|","SERVICES","SPD Swiss Precision Diagnostics GmbH","United Kingdom",null,"AAA099619256",2151,"SPD Swiss Precision Diagnostics GmbH","47, Route de Saint Georges, 1213 Petit Lancy, Switzerland\n","Switzerland","CHE-113.331.027 "]
["GOODS|SPD Development Company Ltd|United Kingdom|","GOODS","SPD Development Company Ltd","United Kingdom",null,"AAA162454334",2156,"SPD Development Company Ltd","Stannard Way, Priory Business Park, Bedford, MK44 3UP","United Kingdom","GB 177 6305 85"]
["SERVICES|SPD Development Company Ltd|United Kingdom|","SERVICES","SPD Development Company Ltd","United Kingdom",null,"AAA162454334",2156,"SPD Development Company Ltd","Stannard Way, Priory Business Park, Bedford, MK44 3UP","United Kingdom","GB 177 6305 85"]
["GOODS|Procter & Gamble Grundstucks und Vermogensverwaltungs GmbH & Co. KG|Germany|","GOODS","Procter & Gamble Grundstucks und Vermogensverwaltungs GmbH & Co. KG","Germany",null,"AAA896150596",2157,"Procter & Gamble Grundstucks und Vermogensverwaltungs GmbH & Co. KG","Sulzbacher Str.40-50, 65824 Schwalbach am Taunus, Germany","Germany","DE 254184022"]
["SERVICES|Procter & Gamble Grundstucks und Vermogensverwaltungs GmbH & Co. KG|Germany|","SERVICES","Procter & Gamble Grundstucks und Vermogensverwaltungs GmbH & Co. KG","Germany",null,"AAA896150596",2157,"Procter & Gamble Grundstucks und Vermogensverwaltungs GmbH & Co. KG","Sulzbacher Str.40-50, 65824 Schwalbach am Taunus, Germany","Germany","DE 254184022"]
["|||"]
["|||"]
["GOODS|Wella UK Holdings Limited|United Kingdom|","GOODS","Wella UK Holdings Limited","United Kingdom",null,"AAA499242824",2211,"Wella UK Holdings Limited","The Heights, Brooklands, Weybridge, Surrey, KT13 0XP","United Kingdom","GB 537422841"]
["SERVICES|Wella UK Holdings Limited|United Kingdom|","SERVICES","Wella UK Holdings Limited","United Kingdom",null,"AAA499242824",2211,"Wella UK Holdings Limited","The Heights, Brooklands, Weybridge, Surrey, KT13 0XP","United Kingdom","GB 537422841"]
["GOODS|Parfum Rochas SAS||","GOODS","Parfum Rochas SAS"]
["SERVICES|Parfum Rochas SAS||","SERVICES","Parfum Rochas SAS"]
["GOODS|SAS SPF Beauté|France|","GOODS","SAS SPF Beauté","France",null,"AAA515140812",2227,"SAS SPF Beauté","163 Quai Aulagnier, 92600 Asnieres Sur Seine, France\n","France","NOT VAT REGISTERED"]
["SERVICES|SAS SPF Beauté|France|","SERVICES","SAS SPF Beauté","France",null,"AAA515140812",2227,"SAS SPF Beauté","163 Quai Aulagnier, 92600 Asnieres Sur Seine, France\n","France","NOT VAT REGISTERED"]
["GOODS|PGT Healthcare LLP|Switzerland|","GOODS","PGT Healthcare LLP","Switzerland",null,"AAA568723936",2289,"PGT Healthcare LLP","Succursalle, Route De Saint Georges, 1213 Petit Lancy, Switzerland\n","Switzerland","CHE-390.161.707 TVA"]
["SERVICES|PGT Healthcare LLP|Switzerland|","SERVICES","PGT Healthcare LLP","Switzerland",null,"AAA568723936",2289,"PGT Healthcare LLP","Succursalle, Route De Saint Georges, 1213 Petit Lancy, Switzerland\n","Switzerland","CHE-390.161.707 TVA"]
["GOODS|Procter and Gamble Retail Services BVBA|Belgium|","GOODS","Procter and Gamble Retail Services BVBA","Belgium",null,"AAA839415221",2349,"Procter and Gamble Retail Services BVBA"," Temselaan 100, Strombeek-Bever, B-1853, Belgium","Belgium","BE 0536499872"]
["SERVICES|Procter and Gamble Retail Services BVBA|Belgium|","SERVICES","Procter and Gamble Retail Services BVBA","Belgium",null,"AAA839415221",2349,"Procter and Gamble Retail Services BVBA"," Temselaan 100, Strombeek-Bever, B-1853, Belgium","Belgium","BE 0536499872"]
[{"$f":"B120&\"|\"&C120&\"|\"&D120&\"|\"&E120","v":"GOODS|Procter & Gamble Services Company NV|Belgium|"},"GOODS","Procter & Gamble Services Company NV","Belgium",null,"AAA604755918",270,"Procter & Gamble Services Company NV","Temselaan 100, 1853 Strombeek-Bever, Belgium\n","Belgium ","BE 0.437.862.552"]
["SERVICES|Procter & Gamble Services Company NV|Belgium|","SERVICES","Procter & Gamble Services Company NV","Belgium",null,"AAA604755918",270,"Procter & Gamble Services Company NV","Temselaan 100, 1853 Strombeek-Bever, Belgium\n","Belgium ","BE 0.437.862.552"]
["GOODS|Procter & Gamble Manufacturing Belgium NV|Belgium|","GOODS","Procter & Gamble Manufacturing Belgium NV","Belgium",null,"AAA374919553",685,"Procter & Gamble Manufacturing Belgium NV","Temselaan 55, Box 263, 1853 Strombeek-Bever, Belgium\n","Belgium ","BE 0.459.802.269"]
["SERVICES|Procter & Gamble Manufacturing Belgium NV|Belgium|","SERVICES","Procter & Gamble Manufacturing Belgium NV","Belgium",null,"AAA374919553",685,"Procter & Gamble Manufacturing Belgium NV","Temselaan 55, Box 263, 1853 Strombeek-Bever, Belgium\n","Belgium ","BE 0.459.802.269"]
["GOODS|Procter & Gamble Company|Canada|","GOODS","Procter & Gamble Company","Canada",null,"AAA462167966",62,"Procter & Gamble Company","PROCTER & GAMBLE COMPANY\n1 PROCTER & GAMBLE PLAZA 45202\nCINCINNATI\nOH\nHAMILTON","Canada","88783 0412"]
["GOODS|Procter & Gamble Inc|Canada|","GOODS","Procter & Gamble Inc","Canada",null,"AAA790646434",283,"Procter & Gamble Inc","PROCTER & GAMBLE INC\n4711 YONGE STREET\nM2N 6K8\nTORONTO\nON","Canada","10431 1188"]
["GOODS|Procter & Gamble Inc.  - Wella Division|Canada|","GOODS","Procter & Gamble Inc.  - Wella Division","Canada",null,"AAA939259602",2196,"Procter & Gamble Inc.  - Wella Division","5800 AVEBURY ROAD, \nUNIT 1\nL5R 3M3\nMISSISSAUGA,\nONTARIO","Canada","10431 1188"]
["GOODS|P&G HONG KONG LTD|Hong Kong|","GOODS","P&G HONG KONG LTD","Hong Kong",null,"AAA987837721",342,"P&G HONG KONG LTD","Procter & Gamble Hong Kong Ltd, \n6/F., Shui On Centre, 6-8 Harbour Road, \nWan Chai, Hong Kong","Hong Kong","06/11614668"]
["GOODS|Procter & Gamble (Malaysia) Sdn. Bhd. |Malaysia|","GOODS","Procter & Gamble (Malaysia) Sdn. Bhd. ","Malaysia",null,"AAA632847554",373,"Procter & Gamble (Malaysia) Sdn. Bhd. ","10th Floor,Surian Tower\n1, Jalan PJU 7/3, Mutiara Damansara,\n47810 Selangor ","Malaysia","000058966016","Add VAT ID"]
["GOODS|Procter & Gamble International Operations SA Singapore Branch|Malaysia|","GOODS","Procter & Gamble International Operations SA Singapore Branch","Malaysia",null,"AAA574955738",828,"Procter and Gamble International Operations SA Singapore Branch","11 North Buona Vista Drive, #21-07.\nThe Metropolis Tower 2,\nSingapore, 138589\n","Malaysia","0001972326400"]
["GOODS|Procter & Gamble Europe SA Singapore Branch|Singapore|","GOODS","Procter & Gamble Europe SA Singapore Branch","Singapore",null,"AAA402091839",606,"Procter & Gamble Europe SA Singapore Branch","11 North Buona Vista Drive, #21-07.\nThe Metropolis Tower 2,\nSingapore, 138589","Singapore","M90005335T"]
["GOODS|Procter & Gamble International Operations SA Singapore Branch|Singapore|","GOODS","Procter & Gamble International Operations SA Singapore Branch","Singapore",null,"AAA535868525",828,"Procter & Gamble International Operations SA Singapore Branch","11 North Buona Vista Drive, #21-07.\nThe Metropolis Tower 2,\nSingapore, 138589","Singapore","M90005335T"]
["GOODS|Procter & Gamble Singapore Pte Ltd|Singapore|","GOODS","Procter & Gamble Singapore Pte Ltd","Singapore",null,"AAA544729163",412,"Procter & Gamble Singapore Pte Ltd","11 North Buona Vista Drive, #21-07.\nThe Metropolis Tower 2,\nSingapore, 138589","Singapore","M90005335T"]
["GOODS|P&G Northeast Asia Pte Ltd|Singapore|","GOODS","P&G Northeast Asia Pte Ltd","Singapore",null,"AAA092698695",820,"P&G Northeast Asia Pte Ltd","238A Thomson Road, #20-01/10, Novena Square Tower A Singapore 307684","Singapore","M90005335T","Add VAT ID"]
["GOODS|The Gillette Company|United States|","GOODS","The Gillette Company","United States",null,"AAA851949743",69,"The Gillette Company","THE GILLETTE COMPANY\n1 PROCTER & GAMBLE PLAZA 45202\nCINCINNATI\nOH","United States","04-1366970"]
["GOODS|THE PROCTER & GAMBLE COMPANY|United States|","GOODS","THE PROCTER & GAMBLE COMPANY","United States",null,"AAA468427166",1,"THE PROCTER & GAMBLE COMPANY","THE PROCTER & GAMBLE COMPANY\n1 PROCTER & GAMBLE PLAZA 45202\nCINCINNATI\nOH","United States","31-0411980"]
["GOODS|P&G Manufacturing Co.|United States|","GOODS","P&G Manufacturing Co.","United States",null,"AAA916899396",2,"P&G Manufacturing Co.","THE PROCTER & GAMBLE MANUFACTURING COMPANY\n1 PROCTER & GAMBLE PLAZA 45202\nCINCINNATI\nOH","United States","31-0411982"]
["GOODS|The P&G Distributing LLC|United States|","GOODS","The P&G Distributing LLC","United States",null,"AAA449085133",3,"The P&G Distributing LLC","THE PROCTER & GAMBLE DISTRIBUTING LLC\n1 PROCTER & GAMBLE PLAZA 45202\nCINCINNATI\nOH","United States","31-0411981"]
["GOODS|P&G Paper Products Co|United States|","GOODS","P&G Paper Products Co","United States",null,"AAA972396188",7,"P&G Paper Products Co","THE PROCTER & GAMBLE PAPER PRODUCTS COMPANY\n1 PROCTER & GAMBLE PLAZA 45202\nCINCINNATI\nOH","United States","31-0590862"]
["GOODS|Olay LLC|United States|","GOODS","Olay LLC","United States",null,"AAA098293244",64,"Olay LLC","OLAY LLC\n1 PROCTER & GAMBLE PLAZA 45202\nCINCINNATI\nOH","United States","66-1160866"]
["GOODS|Tambrands, Inc.|United States|","GOODS","Tambrands, Inc.","United States",null,"AAA544376221",89,"Tambrands, Inc.","TAMBRANDS, INC.\n1 PROCTER & GAMBLE PLAZA 45202\nCINCINNATI\nOH","United States","13-1366500"]
["GOODS|PROCTER & GAMBLE PRODUCTIONS, INC.|United States|","GOODS","PROCTER & GAMBLE PRODUCTIONS, INC.","United States",null,"AAA351514724",4,"PROCTER & GAMBLE PRODUCTIONS, INC.","ONE PROCTER & GAMBLE PLAZA 45202\nCINCINNATI\nOH","United States","31-0526680"]
["GOODS|THE PROCTER & GAMBLE US BUSINESS SERVICES COMPANY|United States|","GOODS","THE PROCTER & GAMBLE US BUSINESS SERVICES COMPANY","United States",null,"AAA515232890",5,"THE PROCTER & GAMBLE US BUSINESS SERVICES COMPANY","1 PROCTER & GAMBLE PLAZA\nCINCINNATI, OH 45202\nUSA","United States","26-0048600"]
["GOODS|GRAHAM WEBB INTERNATIONAL, INC.|United States|","GOODS","GRAHAM WEBB INTERNATIONAL, INC.","United States",null,"AAA438836504",6,"GRAHAM WEBB INTERNATIONAL, INC.","1 5823 NEWTON DRIVE\nCARLSBAD, OH 92008-7312\nUSA","United States","95-4878890"]
["GOODS[PROCTER & GAMBLE INTERNATIONAL OPERATIONS PTE LTD]","GOODS","PROCTER & GAMBLE INTERNATIONAL OPERATIONS PTE LTD","Singapore",null,null,2282,"PROCTER & GAMBLE INTERNATIONAL OPERATIONS PTE LTD","11 North Buona Vista Drive, #21-07.\nThe Metropolis Tower 2,\nSingapore, 138589","Singapore","M90005335T","NEW"]
["GOODS[PROCTER & GAMBLE ASIA PTE. LIMITED]","GOODS","PROCTER & GAMBLE ASIA PTE. LIMITED","Singapore",null,null,2285,"PROCTER & GAMBLE ASIA PTE. LIMITED","11 North Buona Vista Drive, #21-07.\nThe Metropolis Tower 2,\nSingapore, 138589","Singapore","M90005335T","NEW"]
["GOODS|PROCTER & GAMBLE RHD, INC.|United States|","GOODS","PROCTER & GAMBLE RHD, INC.","United States",null,"AAA374169852",18,"PROCTER & GAMBLE RHD, INC.","1 PROCTER & GAMBLE PLAZA\nCINCINNATI, OH 45202\nUSA","United States","31-1649172"]
["GOODS|PROCTER & GAMBLE FAR EAST, INC.|United States|","GOODS","PROCTER & GAMBLE FAR EAST, INC.","United States",null,"AAA918786476",51,"PROCTER & GAMBLE FAR EAST, INC.","1 PROCTER & GAMBLE PLAZA 45202\nCINCINNATI\nOH","United States","31-1070709"]
["GOODS|The Dover Wipes Company|United States|","GOODS","The Dover Wipes Company","United States",null,"AAA793372004",65,"The Dover Wipes Company","1 PROCTER & GAMBLE PLAZA\nCINCINNATI, OH 45202\nUSA","United States","31-1465942"]
["GOODS|GIORGIO BEVERLY HILLS, INC.|United States|","GOODS","GIORGIO BEVERLY HILLS, INC.","United States",null,"AAA241901149",91,"GIORGIO BEVERLY HILLS, INC.","1 PROCTER & GAMBLE PLAZA\nCINCINNATI, OH 45202\nUSA","United States","13-3407469"]
["GOODS|PROCTER & GAMBLE HAIR CARE LLC|United States|","GOODS","PROCTER & GAMBLE HAIR CARE LLC","United States",null,"AAA213225212",94,"PROCTER & GAMBLE HAIR CARE LLC","1 PROCTER & GAMBLE PLAZA 45202\nCINCINNATI\nOH","United States","31-1806481"]
["GOODS|ORAL-B LABORATORIES G.P.|United States|","GOODS","ORAL-B LABORATORIES G.P.","United States",null,"AAA839127123",170,"ORAL-B LABORATORIES G.P.","ORAL-B \n1 PROCTER & GAMBLE PLAZA 45202\nCINCINNATI\nOH","United States","42-1497813"]
["GOODS|Agile Pursuits, Inc|United States|","GOODS","Agile Pursuits, Inc","United States",null,"AAA613858489",2141,"Agile Pursuits, Inc","1 PROCTER & GAMBLE PLAZA 45202\nCINCINNATI\nOH","United States","38-3760479"]
["GOODS|Olay  LLC|United States|","GOODS","Olay  LLC","United States",null,"AAA137333241",2159,"Olay  LLC","RD 735,KM 2.3,BARRIO RÍO LLANO\nPO BOX 7000\nCAYEY 00737","United States","66-0693870"]
["GOODS|Agile Pursuits Fran. Inc.|United States|","GOODS","Agile Pursuits Fran. Inc.","United States",null,"AAA738299155",2216,"Agile Pursuits Fran. Inc.","1 PROCTER & GAMBLE PLAZA 45202\nCINCINNATI\nOH","United States","26-3855787"]
["GOODS|Benefit Plan Trust|United States|","GOODS","Benefit Plan Trust","United States",null,"AAA439301268","N991","Benefit Plan Trust","1 PROCTER & GAMBLE PLAZA\nCINCINNATI, OH 45202\nUSA","United States","31-1018491"]
["SERVICES|Procter & Gamble Company|Canada|","SERVICES","Procter & Gamble Company","Canada",null,"AAA462167966",62,"Procter & Gamble Company","PROCTER & GAMBLE COMPANY\n1 PROCTER & GAMBLE PLAZA 45202\nCINCINNATI\nOH\nHAMILTON","Canada","88783 0412"]
["SERVICES|Procter & Gamble Inc|Canada|","SERVICES","Procter & Gamble Inc","Canada",null,"AAA790646434",283,"Procter & Gamble Inc","PROCTER & GAMBLE INC\n4711 YONGE STREET\nM2N 6K8\nTORONTO\nON","Canada","10431 1188"]
["SERVICES|Procter & Gamble Inc.  - Wella Division|Canada|","SERVICES","Procter & Gamble Inc.  - Wella Division","Canada",null,"AAA939259602",2196,"Procter & Gamble Inc.  - Wella Division","5800 AVEBURY ROAD, \nUNIT 1\nL5R 3M3\nMISSISSAUGA,\nONTARIO","Canada","10431 1188"]
["SERVICES|P&G HONG KONG LTD|Hong Kong|","SERVICES","P&G HONG KONG LTD","Hong Kong",null,"AAA987837721",342,"P&G HONG KONG LTD","Procter & Gamble Hong Kong Ltd, \n6/F., Shui On Centre, 6-8 Harbour Road, \nWan Chai, Hong Kong","Hong Kong","No VAT Registration for Hongkong"]
["SERVICES|Procter & Gamble (Malaysia) Sdn. Bhd. |Malaysia|","SERVICES","Procter & Gamble (Malaysia) Sdn. Bhd. ","Malaysia",null,"AAA632847554",373,"Procter & Gamble (Malaysia) Sdn. Bhd. ","10th Floor,Surian Tower\n1, Jalan PJU 7/3, Mutiara Damansara,\n47810 Selangor ","Malaysia","No VAT Registration for MY"]
["SERVICES|Procter & Gamble International Operations SA Singapore Branch|Malaysia|","SERVICES","Procter & Gamble International Operations SA Singapore Branch","Malaysia",null,"AAA574955738",828,"Procter and Gamble International Operations SA Singapore Branch","11 North Buona Vista Drive, #21-07.\nThe Metropolis Tower 2,\nSingapore, 138589\n","Malaysia","0001972326400"]
["SERVICES|Procter & Gamble Europe SA Singapore Branch|Singapore|","SERVICES","Procter & Gamble Europe SA Singapore Branch","Singapore",null,"AAA402091839",606,"Procter & Gamble Europe SA Singapore Branch","11 North Buona Vista Drive, #21-07.\nThe Metropolis Tower 2,\nSingapore, 138589","Singapore","M90005335T"]
["SERVICES|Procter & Gamble International Operations SA Singapore Branch|Singapore|","SERVICES","Procter & Gamble International Operations SA Singapore Branch","Singapore",null,"AAA535868525",828,"Procter & Gamble International Operations SA Singapore Branch","11 North Buona Vista Drive, #21-07.\nThe Metropolis Tower 2,\nSingapore, 138589","Singapore","M90005335T"]
["SERVICES|Procter & Gamble Singapore Pte Ltd|Singapore|","SERVICES","Procter & Gamble Singapore Pte Ltd","Singapore",null,"AAA544729163",412,"Procter & Gamble Singapore Pte Ltd","11 North Buona Vista Drive, #21-07.\nThe Metropolis Tower 2,\nSingapore, 138589","Singapore","M90005335T"]
["SERVICES|P&G Northeast Asia Pte Ltd|Singapore|","SERVICES","P&G Northeast Asia Pte Ltd","Singapore",null,"AAA092698695",820,"P&G Northeast Asia Pte Ltd","238A Thomson Road, #20-01/10, Novena Square Tower A Singapore 307684","Singapore","None"]
["SERVICES|The Gillette Company|United States|","SERVICES","The Gillette Company","United States",null,"AAA851949743",69,"The Gillette Company","THE GILLETTE COMPANY\n1 PROCTER & GAMBLE PLAZA 45202\nCINCINNATI\nOH","United States","04-1366970"]
["SERVICES|THE PROCTER & GAMBLE COMPANY|United States|","SERVICES","THE PROCTER & GAMBLE COMPANY","United States",null,"AAA468427166",1,"THE PROCTER & GAMBLE COMPANY","THE PROCTER & GAMBLE COMPANY\n1 PROCTER & GAMBLE PLAZA 45202\nCINCINNATI\nOH","United States","31-0411980"]
[{"$f":"B168&\"|\"&C168&\"|\"&D168&\"|\"&E168","v":"SERVICES|P&G Manufacturing Co.|United States|"},"SERVICES","P&G Manufacturing Co.","United States",null,"AAA916899396",2,"P&G Manufacturing Co.","THE PROCTER & GAMBLE MANUFACTURING COMPANY\n1 PROCTER & GAMBLE PLAZA 45202\nCINCINNATI\nOH","United States","31-0411982"]
["SERVICES|The P&G Distributing LLC|United States|","SERVICES","The P&G Distributing LLC","United States",null,"AAA449085133",3,"The P&G Distributing LLC","THE PROCTER & GAMBLE DISTRIBUTING LLC\n1 PROCTER & GAMBLE PLAZA 45202\nCINCINNATI\nOH","United States","31-0411981"]
["SERVICES|P&G Paper Products Co|United States|","SERVICES","P&G Paper Products Co","United States",null,"AAA972396188",7,"P&G Paper Products Co","THE PROCTER & GAMBLE PAPER PRODUCTS COMPANY\n1 PROCTER & GAMBLE PLAZA 45202\nCINCINNATI\nOH","United States","31-0590862"]
["SERVICES|Olay LLC|United States|","SERVICES","Olay LLC","United States",null,"AAA098293244",64,"Olay LLC","OLAY LLC\n1 PROCTER & GAMBLE PLAZA 45202\nCINCINNATI\nOH","United States","66-1160866"]
["SERVICES|Tambrands, Inc.|United States|","SERVICES","Tambrands, Inc.","United States",null,"AAA544376221",89,"Tambrands, Inc.","TAMBRANDS, INC.\n1 PROCTER & GAMBLE PLAZA 45202\nCINCINNATI\nOH","United States","13-1366500"]
["SERVICES|PROCTER & GAMBLE PRODUCTIONS, INC.|United States|","SERVICES","PROCTER & GAMBLE PRODUCTIONS, INC.","United States",null,"AAA351514724",4,"PROCTER & GAMBLE PRODUCTIONS, INC.","ONE PROCTER & GAMBLE PLAZA 45202\nCINCINNATI\nOH","United States","31-0526680"]
["SERVICES|THE PROCTER & GAMBLE US BUSINESS SERVICES COMPANY|United States|","SERVICES","THE PROCTER & GAMBLE US BUSINESS SERVICES COMPANY","United States",null,"AAA515232890",5,"THE PROCTER & GAMBLE US BUSINESS SERVICES COMPANY","1 PROCTER & GAMBLE PLAZA\nCINCINNATI, OH 45202\nUSA","United States","26-0048600"]
["SERVICES|GRAHAM WEBB INTERNATIONAL, INC.|United States|","SERVICES","GRAHAM WEBB INTERNATIONAL, INC.","United States",null,"AAA438836504",6,"GRAHAM WEBB INTERNATIONAL, INC.","1 5823 NEWTON DRIVE\nCARLSBAD, OH 92008-7312\nUSA","United States","95-4878890"]
[]
[]
["SERVICES|PROCTER & GAMBLE RHD, INC.|United States|","SERVICES","PROCTER & GAMBLE RHD, INC.","United States",null,"AAA374169852",18,"PROCTER & GAMBLE RHD, INC.","1 PROCTER & GAMBLE PLAZA\nCINCINNATI, OH 45202\nUSA","United States","31-1649172"]
["SERVICES|PROCTER & GAMBLE FAR EAST, INC.|United States|","SERVICES","PROCTER & GAMBLE FAR EAST, INC.","United States",null,"AAA918786476",51,"PROCTER & GAMBLE FAR EAST, INC.","1 PROCTER & GAMBLE PLAZA 45202\nCINCINNATI\nOH","United States","31-1070709"]
["SERVICES|The Dover Wipes Company|United States|","SERVICES","The Dover Wipes Company","United States",null,"AAA793372004",65,"The Dover Wipes Company","1 PROCTER & GAMBLE PLAZA\nCINCINNATI, OH 45202\nUSA","United States","31-1465942"]
["SERVICES|GIORGIO BEVERLY HILLS, INC.|United States|","SERVICES","GIORGIO BEVERLY HILLS, INC.","United States",null,"AAA241901149",91,"GIORGIO BEVERLY HILLS, INC.","1 PROCTER & GAMBLE PLAZA\nCINCINNATI, OH 45202\nUSA","United States","13-3407469"]
["SERVICES|PROCTER & GAMBLE HAIR CARE LLC|United States|","SERVICES","PROCTER & GAMBLE HAIR CARE LLC","United States",null,"AAA213225212",94,"PROCTER & GAMBLE HAIR CARE LLC","1 PROCTER & GAMBLE PLAZA 45202\nCINCINNATI\nOH","United States","31-1806481"]
["SERVICES|ORAL-B LABORATORIES G.P.|United States|","SERVICES","ORAL-B LABORATORIES G.P.","United States",null,"AAA839127123",170,"ORAL-B LABORATORIES G.P.","ORAL-B \n1 PROCTER & GAMBLE PLAZA 45202\nCINCINNATI\nOH","United States","42-1497813"]
["SERVICES|Agile Pursuits, Inc|United States|","SERVICES","Agile Pursuits, Inc","United States",null,"AAA613858489",2141,"Agile Pursuits, Inc","1 PROCTER & GAMBLE PLAZA 45202\nCINCINNATI\nOH","United States","38-3760479"]
["SERVICES|Olay  LLC|United States|","SERVICES","Olay  LLC","United States",null,"AAA137333241",2159,"Olay  LLC","RD 735,KM 2.3,BARRIO RÍO LLANO\nPO BOX 7000\nCAYEY 00737","United States","66-0693870"]
["SERVICES|Agile Pursuits Fran. Inc.|United States|","SERVICES","Agile Pursuits Fran. Inc.","United States",null,"AAA738299155",2216,"Agile Pursuits Fran. Inc.","1 PROCTER & GAMBLE PLAZA 45202\nCINCINNATI\nOH","United States","26-3855787"]
["SERVICES|Benefit Plan Trust|United States|","SERVICES","Benefit Plan Trust","United States",null,"AAA439301268","N991","Benefit Plan Trust","1 PROCTER & GAMBLE PLAZA\nCINCINNATI, OH 45202\nUSA","United States","31-1018491"]